{"text_format":"1","workbook":"xlsx","n_sheets":1,"sheets":["Adatközlő"],"not_rendered":{"charts":0,"images":1,"macros":1,"external_links":0,"defined_names":4,"comments":0,"pivot_tables":0},"unopened":[],"bounds":{"document_bytes":16777216,"sheet_cells":100000,"rows_first":2000,"rows_last":500,"rows_between":2000,"halvings":0,"cell_chars":16384,"cell_head_chars":4096},"cells_cut":0,"cells_raw":0,"read":"whole","date_system":"1900"}

{"sheet":"Adatközlő","index":0,"n_rows":4001,"n_cols":23,"rows_kept":4001,"cut":false,"hidden":false,"merged":[[3,1,3,4],[0,0,0,15],[1,0,1,15],[3,5,3,15]]}
["PrivateMed Pro csoportos egészségbiztosítás"]
["Adatközlő"]
[]
["Szerződő neve:"]
["Kitöltés dátuma:",null,"Átlagkor:",{"$f":"IF(C8<>\"\",AVERAGEIF(D8:D4000,\">18\"),\"\")","v":""},"Hatálybalépés kezdete:",null,"Szerződésszám:",null,null,null,null,null,null,null,null,null,null,"Lejár Dátum","verzió","lejár jelszó"]
[null,null,null,null,null,null,null,null,null,null,null,null,null,null,null,null,null,"2018-06-30","v1.4","PMPro"]
["Biztosított vezetékneve","Biztosított keresztneve","Születési ideje","Kor","Anyja neve","Telefon\n(+36)","Irányító-szám","Helység","Utca, Házszám","Emelet / Ajtó","TAJ szám vagy egyéb okmány szám","Belépés vagy kilépés","Választott csomag","Szűrővizsgálat","Kórházi csomag","Hope Plusz",null,"egyszeres","nem","nem","nem"]
[null,null,null,{"$f":"IF(C8<>\"\",YEAR(TODAY())-YEAR(C8),\"\")","v":""},null,null,null,null,null,null,null,null,null,null,null,null,null,"kétszeres","közepes","igen","Arany","belépés","1. csoport"]
[null,null,null,{"$f":"IF(C9<>\"\",YEAR(TODAY())-YEAR(C9),\"\")","v":""},null,null,null,null,null,null,null,null,null,null,null,null,null,"limit nélkül","személyreszabott",null,"Ezüst","kilépés","2. csoport"]
[null,null,null,"",null,null,null,null,null,null,null,null,null,null,null,null,null,"családi kiterjesztés",null,null,null,null,"3. csoport"]
[null,null,null,"",null,null,null,null,null,null,null,null,null,null,null,null,null,"gyermekcsomag",null,null,null,null,"4. csoport"]
[null,null,null,"",null,null,null,null,null,null,null,null,null,null,null,null,null,null,null,null,null,null,"5. csoport"]
[null,null,null,"",null,null,null,null,null,null,null,null,null,null,null,null,null,null,null,null,null,null,"6. csoport"]
[null,null,null,"",null,null,null,null,null,null,null,null,null,null,null,null,null,"Sor azonosito"]
[null,null,null,"",null,null,null,null,null,null,null,null,null,null,null,null,null,2]
[null,null,null,"",null,null,null,null,null,null,null,null,null,null,null,null,null,"Család Azonosító","Vezetéknév","Keresztnév","Szül. dát","Anyja neve"]
[null,null,null,""]
[null,null,null,""]
[null,null,null,""]
[null,null,null,""]
[null,null,null,""]
[null,null,null,""]
[null,null,null,""]
[null,null,null,""]
[null,null,null,""]
[null,null,null,""]
[null,null,null,""]
[null,null,null,""]
[null,null,null,""]
[null,null,null,""]
[null,null,null,""]
[null,null,null,""]
[null,null,null,""]
[null,null,null,""]
[null,null,null,""]
[null,null,null,""]
[null,null,null,""]
[null,null,null,""]
[null,null,null,""]
[null,null,null,""]
[null,null,null,""]
[null,null,null,""]
[null,null,null,""]
[null,null,null,""]
[null,null,null,""]
[null,null,null,""]
[null,null,null,""]
[null,null,null,""]
[null,null,null,""]
[null,null,null,""]
[null,null,null,""]
[null,null,null,""]
[null,null,null,""]
[null,null,null,""]
[null,null,null,""]
[null,null,null,""]
[null,null,null,""]
[null,null,null,""]
[null,null,null,""]
[null,null,null,""]
[null,null,null,""]
[null,null,null,""]
[null,null,null,""]
[null,null,null,""]
[null,null,null,""]
[null,null,null,""]
[null,null,null,""]
[null,null,null,""]
[null,null,null,""]
[null,null,null,""]
[null,null,null,""]
[null,null,null,""]
[null,null,null,{"$f":"IF(C73<>\"\",YEAR(TODAY())-YEAR(C73),\"\")","v":""}]
[null,null,null,""]
[null,null,null,""]
[null,null,null,""]
[null,null,null,""]
[null,null,null,""]
[null,null,null,""]
[null,null,null,""]
[null,null,null,""]
[null,null,null,""]
[null,null,null,""]
[null,null,null,""]
[null,null,null,""]
[null,null,null,""]
[null,null,null,""]
[null,null,null,""]
[null,null,null,""]
[null,null,null,""]
[null,null,null,""]
[null,null,null,""]
[null,null,null,""]
[null,null,null,""]
[null,null,null,""]
[null,null,null,""]
[null,null,null,""]
[null,null,null,""]
[null,null,null,""]
[null,null,null,""]
[null,null,null,""]
[null,null,null,""]
[null,null,null,""]
[null,null,null,""]
[null,null,null,""]
[null,null,null,""]
[null,null,null,""]
[null,null,null,""]
[null,null,null,""]
[null,null,null,""]
[null,null,null,""]
[null,null,null,""]
[null,null,null,""]
[null,null,null,""]
[null,null,null,""]
[null,null,null,""]
[null,null,null,""]
[null,null,null,""]
[null,null,null,""]
[null,null,null,""]
[null,null,null,""]
[null,null,null,""]
[null,null,null,""]
[null,null,null,""]
[null,null,null,""]
[null,null,null,""]
[null,null,null,""]
[null,null,null,""]
[null,null,null,""]
[null,null,null,""]
[null,null,null,""]
[null,null,null,""]
[null,null,null,""]
[null,null,null,""]
[null,null,null,""]
[null,null,null,""]
[null,null,null,{"$f":"IF(C137<>\"\",YEAR(TODAY())-YEAR(C137),\"\")","v":""}]
[null,null,null,""]
[null,null,null,""]
[null,null,null,""]
[null,null,null,""]
[null,null,null,""]
[null,null,null,""]
[null,null,null,""]
[null,null,null,""]
[null,null,null,""]
[null,null,null,""]
[null,null,null,""]
[null,null,null,""]
[null,null,null,""]
[null,null,null,""]
[null,null,null,""]
[null,null,null,""]
[null,null,null,""]
[null,null,null,""]
[null,null,null,""]
[null,null,null,""]
[null,null,null,""]
[null,null,null,""]
[null,null,null,""]
[null,null,null,""]
[null,null,null,""]
[null,null,null,""]
[null,null,null,""]
[null,null,null,""]
[null,null,null,""]
[null,null,null,""]
[null,null,null,""]
[null,null,null,""]
[null,null,null,""]
[null,null,null,""]
[null,null,null,""]
[null,null,null,""]
[null,null,null,""]
[null,null,null,""]
[null,null,null,""]
[null,null,null,""]
[null,null,null,""]
[null,null,null,""]
[null,null,null,""]
[null,null,null,""]
[null,null,null,""]
[null,null,null,""]
[null,null,null,""]
[null,null,null,""]
[null,null,null,""]
[null,null,null,""]
[null,null,null,""]
[null,null,null,""]
[null,null,null,""]
[null,null,null,""]
[null,null,null,""]
[null,null,null,""]
[null,null,null,""]
[null,null,null,""]
[null,null,null,""]
[null,null,null,""]
[null,null,null,""]
[null,null,null,""]
[null,null,null,""]
[null,null,null,{"$f":"IF(C201<>\"\",YEAR(TODAY())-YEAR(C201),\"\")","v":""}]
[null,null,null,""]
[null,null,null,""]
[null,null,null,""]
[null,null,null,""]
[null,null,null,""]
[null,null,null,""]
[null,null,null,""]
[null,null,null,""]
[null,null,null,""]
[null,null,null,""]
[null,null,null,""]
[null,null,null,""]
[null,null,null,""]
[null,null,null,""]
[null,null,null,""]
[null,null,null,""]
[null,null,null,""]
[null,null,null,""]
[null,null,null,""]
[null,null,null,""]
[null,null,null,""]
[null,null,null,""]
[null,null,null,""]
[null,null,null,""]
[null,null,null,""]
[null,null,null,""]
[null,null,null,""]
[null,null,null,""]
[null,null,null,""]
[null,null,null,""]
[null,null,null,""]
[null,null,null,""]
[null,null,null,""]
[null,null,null,""]
[null,null,null,""]
[null,null,null,""]
[null,null,null,""]
[null,null,null,""]
[null,null,null,""]
[null,null,null,""]
[null,null,null,""]
[null,null,null,""]
[null,null,null,""]
[null,null,null,""]
[null,null,null,""]
[null,null,null,""]
[null,null,null,""]
[null,null,null,""]
[null,null,null,""]
[null,null,null,""]
[null,null,null,""]
[null,null,null,""]
[null,null,null,""]
[null,null,null,""]
[null,null,null,""]
[null,null,null,""]
[null,null,null,""]
[null,null,null,""]
[null,null,null,""]
[null,null,null,""]
[null,null,null,""]
[null,null,null,""]
[null,null,null,""]
[null,null,null,{"$f":"IF(C265<>\"\",YEAR(TODAY())-YEAR(C265),\"\")","v":""}]
[null,null,null,""]
[null,null,null,""]
[null,null,null,""]
[null,null,null,""]
[null,null,null,""]
[null,null,null,""]
[null,null,null,""]
[null,null,null,""]
[null,null,null,""]
[null,null,null,""]
[null,null,null,""]
[null,null,null,""]
[null,null,null,""]
[null,null,null,""]
[null,null,null,""]
[null,null,null,""]
[null,null,null,""]
[null,null,null,""]
[null,null,null,""]
[null,null,null,""]
[null,null,null,""]
[null,null,null,""]
[null,null,null,""]
[null,null,null,""]
[null,null,null,""]
[null,null,null,""]
[null,null,null,""]
[null,null,null,""]
[null,null,null,""]
[null,null,null,""]
[null,null,null,""]
[null,null,null,""]
[null,null,null,""]
[null,null,null,""]
[null,null,null,""]
[null,null,null,""]
[null,null,null,""]
[null,null,null,""]
[null,null,null,""]
[null,null,null,""]
[null,null,null,""]
[null,null,null,""]
[null,null,null,""]
[null,null,null,""]
[null,null,null,""]
[null,null,null,""]
[null,null,null,""]
[null,null,null,""]
[null,null,null,""]
[null,null,null,""]
[null,null,null,""]
[null,null,null,""]
[null,null,null,""]
[null,null,null,""]
[null,null,null,""]
[null,null,null,""]
[null,null,null,""]
[null,null,null,""]
[null,null,null,""]
[null,null,null,""]
[null,null,null,""]
[null,null,null,""]
[null,null,null,""]
[null,null,null,{"$f":"IF(C329<>\"\",YEAR(TODAY())-YEAR(C329),\"\")","v":""}]
[null,null,null,""]
[null,null,null,""]
[null,null,null,""]
[null,null,null,""]
[null,null,null,""]
[null,null,null,""]
[null,null,null,""]
[null,null,null,""]
[null,null,null,""]
[null,null,null,""]
[null,null,null,""]
[null,null,null,""]
[null,null,null,""]
[null,null,null,""]
[null,null,null,""]
[null,null,null,""]
[null,null,null,""]
[null,null,null,""]
[null,null,null,""]
[null,null,null,""]
[null,null,null,""]
[null,null,null,""]
[null,null,null,""]
[null,null,null,""]
[null,null,null,""]
[null,null,null,""]
[null,null,null,""]
[null,null,null,""]
[null,null,null,""]
[null,null,null,""]
[null,null,null,""]
[null,null,null,""]
[null,null,null,""]
[null,null,null,""]
[null,null,null,""]
[null,null,null,""]
[null,null,null,""]
[null,null,null,""]
[null,null,null,""]
[null,null,null,""]
[null,null,null,""]
[null,null,null,""]
[null,null,null,""]
[null,null,null,""]
[null,null,null,""]
[null,null,null,""]
[null,null,null,""]
[null,null,null,""]
[null,null,null,""]
[null,null,null,""]
[null,null,null,""]
[null,null,null,""]
[null,null,null,""]
[null,null,null,""]
[null,null,null,""]
[null,null,null,""]
[null,null,null,""]
[null,null,null,""]
[null,null,null,""]
[null,null,null,""]
[null,null,null,""]
[null,null,null,""]
[null,null,null,""]
[null,null,null,{"$f":"IF(C393<>\"\",YEAR(TODAY())-YEAR(C393),\"\")","v":""}]
[null,null,null,""]
[null,null,null,""]
[null,null,null,""]
[null,null,null,""]
[null,null,null,""]
[null,null,null,""]
[null,null,null,""]
[null,null,null,""]
[null,null,null,""]
[null,null,null,""]
[null,null,null,""]
[null,null,null,""]
[null,null,null,""]
[null,null,null,""]
[null,null,null,""]
[null,null,null,""]
[null,null,null,""]
[null,null,null,""]
[null,null,null,""]
[null,null,null,""]
[null,null,null,""]
[null,null,null,""]
[null,null,null,""]
[null,null,null,""]
[null,null,null,""]
[null,null,null,""]
[null,null,null,""]
[null,null,null,""]
[null,null,null,""]
[null,null,null,""]
[null,null,null,""]
[null,null,null,""]
[null,null,null,""]
[null,null,null,""]
[null,null,null,""]
[null,null,null,""]
[null,null,null,""]
[null,null,null,""]
[null,null,null,""]
[null,null,null,""]
[null,null,null,""]
[null,null,null,""]
[null,null,null,""]
[null,null,null,""]
[null,null,null,""]
[null,null,null,""]
[null,null,null,""]
[null,null,null,""]
[null,null,null,""]
[null,null,null,""]
[null,null,null,""]
[null,null,null,""]
[null,null,null,""]
[null,null,null,""]
[null,null,null,""]
[null,null,null,""]
[null,null,null,""]
[null,null,null,""]
[null,null,null,""]
[null,null,null,""]
[null,null,null,""]
[null,null,null,""]
[null,null,null,""]
[null,null,null,{"$f":"IF(C457<>\"\",YEAR(TODAY())-YEAR(C457),\"\")","v":""}]
[null,null,null,""]
[null,null,null,""]
[null,null,null,""]
[null,null,null,""]
[null,null,null,""]
[null,null,null,""]
[null,null,null,""]
[null,null,null,""]
[null,null,null,""]
[null,null,null,""]
[null,null,null,""]
[null,null,null,""]
[null,null,null,""]
[null,null,null,""]
[null,null,null,""]
[null,null,null,""]
[null,null,null,""]
[null,null,null,""]
[null,null,null,""]
[null,null,null,""]
[null,null,null,""]
[null,null,null,""]
[null,null,null,""]
[null,null,null,""]
[null,null,null,""]
[null,null,null,""]
[null,null,null,""]
[null,null,null,""]
[null,null,null,""]
[null,null,null,""]
[null,null,null,""]
[null,null,null,""]
[null,null,null,""]
[null,null,null,""]
[null,null,null,""]
[null,null,null,""]
[null,null,null,""]
[null,null,null,""]
[null,null,null,""]
[null,null,null,""]
[null,null,null,""]
[null,null,null,""]
[null,null,null,""]
[null,null,null,""]
[null,null,null,""]
[null,null,null,""]
[null,null,null,""]
[null,null,null,""]
[null,null,null,""]
[null,null,null,""]
[null,null,null,""]
[null,null,null,""]
[null,null,null,""]
[null,null,null,""]
[null,null,null,""]
[null,null,null,""]
[null,null,null,""]
[null,null,null,""]
[null,null,null,""]
[null,null,null,""]
[null,null,null,""]
[null,null,null,""]
[null,null,null,""]
[null,null,null,{"$f":"IF(C521<>\"\",YEAR(TODAY())-YEAR(C521),\"\")","v":""}]
[null,null,null,""]
[null,null,null,""]
[null,null,null,""]
[null,null,null,""]
[null,null,null,""]
[null,null,null,""]
[null,null,null,""]
[null,null,null,""]
[null,null,null,""]
[null,null,null,""]
[null,null,null,""]
[null,null,null,""]
[null,null,null,""]
[null,null,null,""]
[null,null,null,""]
[null,null,null,""]
[null,null,null,""]
[null,null,null,""]
[null,null,null,""]
[null,null,null,""]
[null,null,null,""]
[null,null,null,""]
[null,null,null,""]
[null,null,null,""]
[null,null,null,""]
[null,null,null,""]
[null,null,null,""]
[null,null,null,""]
[null,null,null,""]
[null,null,null,""]
[null,null,null,""]
[null,null,null,""]
[null,null,null,""]
[null,null,null,""]
[null,null,null,""]
[null,null,null,""]
[null,null,null,""]
[null,null,null,""]
[null,null,null,""]
[null,null,null,""]
[null,null,null,""]
[null,null,null,""]
[null,null,null,""]
[null,null,null,""]
[null,null,null,""]
[null,null,null,""]
[null,null,null,""]
[null,null,null,""]
[null,null,null,""]
[null,null,null,""]
[null,null,null,""]
[null,null,null,""]
[null,null,null,""]
[null,null,null,""]
[null,null,null,""]
[null,null,null,""]
[null,null,null,""]
[null,null,null,""]
[null,null,null,""]
[null,null,null,""]
[null,null,null,""]
[null,null,null,""]
[null,null,null,""]
[null,null,null,{"$f":"IF(C585<>\"\",YEAR(TODAY())-YEAR(C585),\"\")","v":""}]
[null,null,null,""]
[null,null,null,""]
[null,null,null,""]
[null,null,null,""]
[null,null,null,""]
[null,null,null,""]
[null,null,null,""]
[null,null,null,""]
[null,null,null,""]
[null,null,null,""]
[null,null,null,""]
[null,null,null,""]
[null,null,null,""]
[null,null,null,""]
[null,null,null,""]
[null,null,null,""]
[null,null,null,""]
[null,null,null,""]
[null,null,null,""]
[null,null,null,""]
[null,null,null,""]
[null,null,null,""]
[null,null,null,""]
[null,null,null,""]
[null,null,null,""]
[null,null,null,""]
[null,null,null,""]
[null,null,null,""]
[null,null,null,""]
[null,null,null,""]
[null,null,null,""]
[null,null,null,""]
[null,null,null,""]
[null,null,null,""]
[null,null,null,""]
[null,null,null,""]
[null,null,null,""]
[null,null,null,""]
[null,null,null,""]
[null,null,null,""]
[null,null,null,""]
[null,null,null,""]
[null,null,null,""]
[null,null,null,""]
[null,null,null,""]
[null,null,null,""]
[null,null,null,""]
[null,null,null,""]
[null,null,null,""]
[null,null,null,""]
[null,null,null,""]
[null,null,null,""]
[null,null,null,""]
[null,null,null,""]
[null,null,null,""]
[null,null,null,""]
[null,null,null,""]
[null,null,null,""]
[null,null,null,""]
[null,null,null,""]
[null,null,null,""]
[null,null,null,""]
[null,null,null,""]
[null,null,null,{"$f":"IF(C649<>\"\",YEAR(TODAY())-YEAR(C649),\"\")","v":""}]
[null,null,null,""]
[null,null,null,""]
[null,null,null,""]
[null,null,null,""]
[null,null,null,""]
[null,null,null,""]
[null,null,null,""]
[null,null,null,""]
[null,null,null,""]
[null,null,null,""]
[null,null,null,""]
[null,null,null,""]
[null,null,null,""]
[null,null,null,""]
[null,null,null,""]
[null,null,null,""]
[null,null,null,""]
[null,null,null,""]
[null,null,null,""]
[null,null,null,""]
[null,null,null,""]
[null,null,null,""]
[null,null,null,""]
[null,null,null,""]
[null,null,null,""]
[null,null,null,""]
[null,null,null,""]
[null,null,null,""]
[null,null,null,""]
[null,null,null,""]
[null,null,null,""]
[null,null,null,""]
[null,null,null,""]
[null,null,null,""]
[null,null,null,""]
[null,null,null,""]
[null,null,null,""]
[null,null,null,""]
[null,null,null,""]
[null,null,null,""]
[null,null,null,""]
[null,null,null,""]
[null,null,null,""]
[null,null,null,""]
[null,null,null,""]
[null,null,null,""]
[null,null,null,""]
[null,null,null,""]
[null,null,null,""]
[null,null,null,""]
[null,null,null,""]
[null,null,null,""]
[null,null,null,""]
[null,null,null,""]
[null,null,null,""]
[null,null,null,""]
[null,null,null,""]
[null,null,null,""]
[null,null,null,""]
[null,null,null,""]
[null,null,null,""]
[null,null,null,""]
[null,null,null,""]
[null,null,null,{"$f":"IF(C713<>\"\",YEAR(TODAY())-YEAR(C713),\"\")","v":""}]
[null,null,null,""]
[null,null,null,""]
[null,null,null,""]
[null,null,null,""]
[null,null,null,""]
[null,null,null,""]
[null,null,null,""]
[null,null,null,""]
[null,null,null,""]
[null,null,null,""]
[null,null,null,""]
[null,null,null,""]
[null,null,null,""]
[null,null,null,""]
[null,null,null,""]
[null,null,null,""]
[null,null,null,""]
[null,null,null,""]
[null,null,null,""]
[null,null,null,""]
[null,null,null,""]
[null,null,null,""]
[null,null,null,""]
[null,null,null,""]
[null,null,null,""]
[null,null,null,""]
[null,null,null,""]
[null,null,null,""]
[null,null,null,""]
[null,null,null,""]
[null,null,null,""]
[null,null,null,""]
[null,null,null,""]
[null,null,null,""]
[null,null,null,""]
[null,null,null,""]
[null,null,null,""]
[null,null,null,""]
[null,null,null,""]
[null,null,null,""]
[null,null,null,""]
[null,null,null,""]
[null,null,null,""]
[null,null,null,""]
[null,null,null,""]
[null,null,null,""]
[null,null,null,""]
[null,null,null,""]
[null,null,null,""]
[null,null,null,""]
[null,null,null,""]
[null,null,null,""]
[null,null,null,""]
[null,null,null,""]
[null,null,null,""]
[null,null,null,""]
[null,null,null,""]
[null,null,null,""]
[null,null,null,""]
[null,null,null,""]
[null,null,null,""]
[null,null,null,""]
[null,null,null,""]
[null,null,null,{"$f":"IF(C777<>\"\",YEAR(TODAY())-YEAR(C777),\"\")","v":""}]
[null,null,null,""]
[null,null,null,""]
[null,null,null,""]
[null,null,null,""]
[null,null,null,""]
[null,null,null,""]
[null,null,null,""]
[null,null,null,""]
[null,null,null,""]
[null,null,null,""]
[null,null,null,""]
[null,null,null,""]
[null,null,null,""]
[null,null,null,""]
[null,null,null,""]
[null,null,null,""]
[null,null,null,""]
[null,null,null,""]
[null,null,null,""]
[null,null,null,""]
[null,null,null,""]
[null,null,null,""]
[null,null,null,""]
[null,null,null,""]
[null,null,null,""]
[null,null,null,""]
[null,null,null,""]
[null,null,null,""]
[null,null,null,""]
[null,null,null,""]
[null,null,null,""]
[null,null,null,""]
[null,null,null,""]
[null,null,null,""]
[null,null,null,""]
[null,null,null,""]
[null,null,null,""]
[null,null,null,""]
[null,null,null,""]
[null,null,null,""]
[null,null,null,""]
[null,null,null,""]
[null,null,null,""]
[null,null,null,""]
[null,null,null,""]
[null,null,null,""]
[null,null,null,""]
[null,null,null,""]
[null,null,null,""]
[null,null,null,""]
[null,null,null,""]
[null,null,null,""]
[null,null,null,""]
[null,null,null,""]
[null,null,null,""]
[null,null,null,""]
[null,null,null,""]
[null,null,null,""]
[null,null,null,""]
[null,null,null,""]
[null,null,null,""]
[null,null,null,""]
[null,null,null,""]
[null,null,null,{"$f":"IF(C841<>\"\",YEAR(TODAY())-YEAR(C841),\"\")","v":""}]
[null,null,null,""]
[null,null,null,""]
[null,null,null,""]
[null,null,null,""]
[null,null,null,""]
[null,null,null,""]
[null,null,null,""]
[null,null,null,""]
[null,null,null,""]
[null,null,null,""]
[null,null,null,""]
[null,null,null,""]
[null,null,null,""]
[null,null,null,""]
[null,null,null,""]
[null,null,null,""]
[null,null,null,""]
[null,null,null,""]
[null,null,null,""]
[null,null,null,""]
[null,null,null,""]
[null,null,null,""]
[null,null,null,""]
[null,null,null,""]
[null,null,null,""]
[null,null,null,""]
[null,null,null,""]
[null,null,null,""]
[null,null,null,""]
[null,null,null,""]
[null,null,null,""]
[null,null,null,""]
[null,null,null,""]
[null,null,null,""]
[null,null,null,""]
[null,null,null,""]
[null,null,null,""]
[null,null,null,""]
[null,null,null,""]
[null,null,null,""]
[null,null,null,""]
[null,null,null,""]
[null,null,null,""]
[null,null,null,""]
[null,null,null,""]
[null,null,null,""]
[null,null,null,""]
[null,null,null,""]
[null,null,null,""]
[null,null,null,""]
[null,null,null,""]
[null,null,null,""]
[null,null,null,""]
[null,null,null,""]
[null,null,null,""]
[null,null,null,""]
[null,null,null,""]
[null,null,null,""]
[null,null,null,""]
[null,null,null,""]
[null,null,null,""]
[null,null,null,""]
[null,null,null,""]
[null,null,null,{"$f":"IF(C905<>\"\",YEAR(TODAY())-YEAR(C905),\"\")","v":""}]
[null,null,null,""]
[null,null,null,""]
[null,null,null,""]
[null,null,null,""]
[null,null,null,""]
[null,null,null,""]
[null,null,null,""]
[null,null,null,""]
[null,null,null,""]
[null,null,null,""]
[null,null,null,""]
[null,null,null,""]
[null,null,null,""]
[null,null,null,""]
[null,null,null,""]
[null,null,null,""]
[null,null,null,""]
[null,null,null,""]
[null,null,null,""]
[null,null,null,""]
[null,null,null,""]
[null,null,null,""]
[null,null,null,""]
[null,null,null,""]
[null,null,null,""]
[null,null,null,""]
[null,null,null,""]
[null,null,null,""]
[null,null,null,""]
[null,null,null,""]
[null,null,null,""]
[null,null,null,""]
[null,null,null,""]
[null,null,null,""]
[null,null,null,""]
[null,null,null,""]
[null,null,null,""]
[null,null,null,""]
[null,null,null,""]
[null,null,null,""]
[null,null,null,""]
[null,null,null,""]
[null,null,null,""]
[null,null,null,""]
[null,null,null,""]
[null,null,null,""]
[null,null,null,""]
[null,null,null,""]
[null,null,null,""]
[null,null,null,""]
[null,null,null,""]
[null,null,null,""]
[null,null,null,""]
[null,null,null,""]
[null,null,null,""]
[null,null,null,""]
[null,null,null,""]
[null,null,null,""]
[null,null,null,""]
[null,null,null,""]
[null,null,null,""]
[null,null,null,""]
[null,null,null,""]
[null,null,null,{"$f":"IF(C969<>\"\",YEAR(TODAY())-YEAR(C969),\"\")","v":""}]
[null,null,null,""]
[null,null,null,""]
[null,null,null,""]
[null,null,null,""]
[null,null,null,""]
[null,null,null,""]
[null,null,null,""]
[null,null,null,""]
[null,null,null,""]
[null,null,null,""]
[null,null,null,""]
[null,null,null,""]
[null,null,null,""]
[null,null,null,""]
[null,null,null,""]
[null,null,null,""]
[null,null,null,""]
[null,null,null,""]
[null,null,null,""]
[null,null,null,""]
[null,null,null,""]
[null,null,null,""]
[null,null,null,""]
[null,null,null,""]
[null,null,null,""]
[null,null,null,""]
[null,null,null,""]
[null,null,null,""]
[null,null,null,""]
[null,null,null,""]
[null,null,null,""]
[null,null,null,""]
[null,null,null,""]
[null,null,null,""]
[null,null,null,""]
[null,null,null,""]
[null,null,null,""]
[null,null,null,""]
[null,null,null,""]
[null,null,null,""]
[null,null,null,""]
[null,null,null,""]
[null,null,null,""]
[null,null,null,""]
[null,null,null,""]
[null,null,null,""]
[null,null,null,""]
[null,null,null,""]
[null,null,null,""]
[null,null,null,""]
[null,null,null,""]
[null,null,null,""]
[null,null,null,""]
[null,null,null,""]
[null,null,null,""]
[null,null,null,""]
[null,null,null,""]
[null,null,null,""]
[null,null,null,""]
[null,null,null,""]
[null,null,null,""]
[null,null,null,""]
[null,null,null,""]
[null,null,null,{"$f":"IF(C1033<>\"\",YEAR(TODAY())-YEAR(C1033),\"\")","v":""}]
[null,null,null,""]
[null,null,null,""]
[null,null,null,""]
[null,null,null,""]
[null,null,null,""]
[null,null,null,""]
[null,null,null,""]
[null,null,null,""]
[null,null,null,""]
[null,null,null,""]
[null,null,null,""]
[null,null,null,""]
[null,null,null,""]
[null,null,null,""]
[null,null,null,""]
[null,null,null,""]
[null,null,null,""]
[null,null,null,""]
[null,null,null,""]
[null,null,null,""]
[null,null,null,""]
[null,null,null,""]
[null,null,null,""]
[null,null,null,""]
[null,null,null,""]
[null,null,null,""]
[null,null,null,""]
[null,null,null,""]
[null,null,null,""]
[null,null,null,""]
[null,null,null,""]
[null,null,null,""]
[null,null,null,""]
[null,null,null,""]
[null,null,null,""]
[null,null,null,""]
[null,null,null,""]
[null,null,null,""]
[null,null,null,""]
[null,null,null,""]
[null,null,null,""]
[null,null,null,""]
[null,null,null,""]
[null,null,null,""]
[null,null,null,""]
[null,null,null,""]
[null,null,null,""]
[null,null,null,""]
[null,null,null,""]
[null,null,null,""]
[null,null,null,""]
[null,null,null,""]
[null,null,null,""]
[null,null,null,""]
[null,null,null,""]
[null,null,null,""]
[null,null,null,""]
[null,null,null,""]
[null,null,null,""]
[null,null,null,""]
[null,null,null,""]
[null,null,null,""]
[null,null,null,""]
[null,null,null,{"$f":"IF(C1097<>\"\",YEAR(TODAY())-YEAR(C1097),\"\")","v":""}]
[null,null,null,""]
[null,null,null,""]
[null,null,null,""]
[null,null,null,""]
[null,null,null,""]
[null,null,null,""]
[null,null,null,""]
[null,null,null,""]
[null,null,null,""]
[null,null,null,""]
[null,null,null,""]
[null,null,null,""]
[null,null,null,""]
[null,null,null,""]
[null,null,null,""]
[null,null,null,""]
[null,null,null,""]
[null,null,null,""]
[null,null,null,""]
[null,null,null,""]
[null,null,null,""]
[null,null,null,""]
[null,null,null,""]
[null,null,null,""]
[null,null,null,""]
[null,null,null,""]
[null,null,null,""]
[null,null,null,""]
[null,null,null,""]
[null,null,null,""]
[null,null,null,""]
[null,null,null,""]
[null,null,null,""]
[null,null,null,""]
[null,null,null,""]
[null,null,null,""]
[null,null,null,""]
[null,null,null,""]
[null,null,null,""]
[null,null,null,""]
[null,null,null,""]
[null,null,null,""]
[null,null,null,""]
[null,null,null,""]
[null,null,null,""]
[null,null,null,""]
[null,null,null,""]
[null,null,null,""]
[null,null,null,""]
[null,null,null,""]
[null,null,null,""]
[null,null,null,""]
[null,null,null,""]
[null,null,null,""]
[null,null,null,""]
[null,null,null,""]
[null,null,null,""]
[null,null,null,""]
[null,null,null,""]
[null,null,null,""]
[null,null,null,""]
[null,null,null,""]
[null,null,null,""]
[null,null,null,{"$f":"IF(C1161<>\"\",YEAR(TODAY())-YEAR(C1161),\"\")","v":""}]
[null,null,null,""]
[null,null,null,""]
[null,null,null,""]
[null,null,null,""]
[null,null,null,""]
[null,null,null,""]
[null,null,null,""]
[null,null,null,""]
[null,null,null,""]
[null,null,null,""]
[null,null,null,""]
[null,null,null,""]
[null,null,null,""]
[null,null,null,""]
[null,null,null,""]
[null,null,null,""]
[null,null,null,""]
[null,null,null,""]
[null,null,null,""]
[null,null,null,""]
[null,null,null,""]
[null,null,null,""]
[null,null,null,""]
[null,null,null,""]
[null,null,null,""]
[null,null,null,""]
[null,null,null,""]
[null,null,null,""]
[null,null,null,""]
[null,null,null,""]
[null,null,null,""]
[null,null,null,""]
[null,null,null,""]
[null,null,null,""]
[null,null,null,""]
[null,null,null,""]
[null,null,null,""]
[null,null,null,""]
[null,null,null,""]
[null,null,null,""]
[null,null,null,""]
[null,null,null,""]
[null,null,null,""]
[null,null,null,""]
[null,null,null,""]
[null,null,null,""]
[null,null,null,""]
[null,null,null,""]
[null,null,null,""]
[null,null,null,""]
[null,null,null,""]
[null,null,null,""]
[null,null,null,""]
[null,null,null,""]
[null,null,null,""]
[null,null,null,""]
[null,null,null,""]
[null,null,null,""]
[null,null,null,""]
[null,null,null,""]
[null,null,null,""]
[null,null,null,""]
[null,null,null,""]
[null,null,null,{"$f":"IF(C1225<>\"\",YEAR(TODAY())-YEAR(C1225),\"\")","v":""}]
[null,null,null,""]
[null,null,null,""]
[null,null,null,""]
[null,null,null,""]
[null,null,null,""]
[null,null,null,""]
[null,null,null,""]
[null,null,null,""]
[null,null,null,""]
[null,null,null,""]
[null,null,null,""]
[null,null,null,""]
[null,null,null,""]
[null,null,null,""]
[null,null,null,""]
[null,null,null,""]
[null,null,null,""]
[null,null,null,""]
[null,null,null,""]
[null,null,null,""]
[null,null,null,""]
[null,null,null,""]
[null,null,null,""]
[null,null,null,""]
[null,null,null,""]
[null,null,null,""]
[null,null,null,""]
[null,null,null,""]
[null,null,null,""]
[null,null,null,""]
[null,null,null,""]
[null,null,null,""]
[null,null,null,""]
[null,null,null,""]
[null,null,null,""]
[null,null,null,""]
[null,null,null,""]
[null,null,null,""]
[null,null,null,""]
[null,null,null,""]
[null,null,null,""]
[null,null,null,""]
[null,null,null,""]
[null,null,null,""]
[null,null,null,""]
[null,null,null,""]
[null,null,null,""]
[null,null,null,""]
[null,null,null,""]
[null,null,null,""]
[null,null,null,""]
[null,null,null,""]
[null,null,null,""]
[null,null,null,""]
[null,null,null,""]
[null,null,null,""]
[null,null,null,""]
[null,null,null,""]
[null,null,null,""]
[null,null,null,""]
[null,null,null,""]
[null,null,null,""]
[null,null,null,""]
[null,null,null,{"$f":"IF(C1289<>\"\",YEAR(TODAY())-YEAR(C1289),\"\")","v":""}]
[null,null,null,""]
[null,null,null,""]
[null,null,null,""]
[null,null,null,""]
[null,null,null,""]
[null,null,null,""]
[null,null,null,""]
[null,null,null,""]
[null,null,null,""]
[null,null,null,""]
[null,null,null,""]
[null,null,null,""]
[null,null,null,""]
[null,null,null,""]
[null,null,null,""]
[null,null,null,""]
[null,null,null,""]
[null,null,null,""]
[null,null,null,""]
[null,null,null,""]
[null,null,null,""]
[null,null,null,""]
[null,null,null,""]
[null,null,null,""]
[null,null,null,""]
[null,null,null,""]
[null,null,null,""]
[null,null,null,""]
[null,null,null,""]
[null,null,null,""]
[null,null,null,""]
[null,null,null,""]
[null,null,null,""]
[null,null,null,""]
[null,null,null,""]
[null,null,null,""]
[null,null,null,""]
[null,null,null,""]
[null,null,null,""]
[null,null,null,""]
[null,null,null,""]
[null,null,null,""]
[null,null,null,""]
[null,null,null,""]
[null,null,null,""]
[null,null,null,""]
[null,null,null,""]
[null,null,null,""]
[null,null,null,""]
[null,null,null,""]
[null,null,null,""]
[null,null,null,""]
[null,null,null,""]
[null,null,null,""]
[null,null,null,""]
[null,null,null,""]
[null,null,null,""]
[null,null,null,""]
[null,null,null,""]
[null,null,null,""]
[null,null,null,""]
[null,null,null,""]
[null,null,null,""]
[null,null,null,{"$f":"IF(C1353<>\"\",YEAR(TODAY())-YEAR(C1353),\"\")","v":""}]
[null,null,null,""]
[null,null,null,""]
[null,null,null,""]
[null,null,null,""]
[null,null,null,""]
[null,null,null,""]
[null,null,null,""]
[null,null,null,""]
[null,null,null,""]
[null,null,null,""]
[null,null,null,""]
[null,null,null,""]
[null,null,null,""]
[null,null,null,""]
[null,null,null,""]
[null,null,null,""]
[null,null,null,""]
[null,null,null,""]
[null,null,null,""]
[null,null,null,""]
[null,null,null,""]
[null,null,null,""]
[null,null,null,""]
[null,null,null,""]
[null,null,null,""]
[null,null,null,""]
[null,null,null,""]
[null,null,null,""]
[null,null,null,""]
[null,null,null,""]
[null,null,null,""]
[null,null,null,""]
[null,null,null,""]
[null,null,null,""]
[null,null,null,""]
[null,null,null,""]
[null,null,null,""]
[null,null,null,""]
[null,null,null,""]
[null,null,null,""]
[null,null,null,""]
[null,null,null,""]
[null,null,null,""]
[null,null,null,""]
[null,null,null,""]
[null,null,null,""]
[null,null,null,""]
[null,null,null,""]
[null,null,null,""]
[null,null,null,""]
[null,null,null,""]
[null,null,null,""]
[null,null,null,""]
[null,null,null,""]
[null,null,null,""]
[null,null,null,""]
[null,null,null,""]
[null,null,null,""]
[null,null,null,""]
[null,null,null,""]
[null,null,null,""]
[null,null,null,""]
[null,null,null,""]
[null,null,null,{"$f":"IF(C1417<>\"\",YEAR(TODAY())-YEAR(C1417),\"\")","v":""}]
[null,null,null,""]
[null,null,null,""]
[null,null,null,""]
[null,null,null,""]
[null,null,null,""]
[null,null,null,""]
[null,null,null,""]
[null,null,null,""]
[null,null,null,""]
[null,null,null,""]
[null,null,null,""]
[null,null,null,""]
[null,null,null,""]
[null,null,null,""]
[null,null,null,""]
[null,null,null,""]
[null,null,null,""]
[null,null,null,""]
[null,null,null,""]
[null,null,null,""]
[null,null,null,""]
[null,null,null,""]
[null,null,null,""]
[null,null,null,""]
[null,null,null,""]
[null,null,null,""]
[null,null,null,""]
[null,null,null,""]
[null,null,null,""]
[null,null,null,""]
[null,null,null,""]
[null,null,null,""]
[null,null,null,""]
[null,null,null,""]
[null,null,null,""]
[null,null,null,""]
[null,null,null,""]
[null,null,null,""]
[null,null,null,""]
[null,null,null,""]
[null,null,null,""]
[null,null,null,""]
[null,null,null,""]
[null,null,null,""]
[null,null,null,""]
[null,null,null,""]
[null,null,null,""]
[null,null,null,""]
[null,null,null,""]
[null,null,null,""]
[null,null,null,""]
[null,null,null,""]
[null,null,null,""]
[null,null,null,""]
[null,null,null,""]
[null,null,null,""]
[null,null,null,""]
[null,null,null,""]
[null,null,null,""]
[null,null,null,""]
[null,null,null,""]
[null,null,null,""]
[null,null,null,""]
[null,null,null,{"$f":"IF(C1481<>\"\",YEAR(TODAY())-YEAR(C1481),\"\")","v":""}]
[null,null,null,""]
[null,null,null,""]
[null,null,null,""]
[null,null,null,""]
[null,null,null,""]
[null,null,null,""]
[null,null,null,""]
[null,null,null,""]
[null,null,null,""]
[null,null,null,""]
[null,null,null,""]
[null,null,null,""]
[null,null,null,""]
[null,null,null,""]
[null,null,null,""]
[null,null,null,""]
[null,null,null,""]
[null,null,null,""]
[null,null,null,""]
[null,null,null,""]
[null,null,null,""]
[null,null,null,""]
[null,null,null,""]
[null,null,null,""]
[null,null,null,""]
[null,null,null,""]
[null,null,null,""]
[null,null,null,""]
[null,null,null,""]
[null,null,null,""]
[null,null,null,""]
[null,null,null,""]
[null,null,null,""]
[null,null,null,""]
[null,null,null,""]
[null,null,null,""]
[null,null,null,""]
[null,null,null,""]
[null,null,null,""]
[null,null,null,""]
[null,null,null,""]
[null,null,null,""]
[null,null,null,""]
[null,null,null,""]
[null,null,null,""]
[null,null,null,""]
[null,null,null,""]
[null,null,null,""]
[null,null,null,""]
[null,null,null,""]
[null,null,null,""]
[null,null,null,""]
[null,null,null,""]
[null,null,null,""]
[null,null,null,""]
[null,null,null,""]
[null,null,null,""]
[null,null,null,""]
[null,null,null,""]
[null,null,null,""]
[null,null,null,""]
[null,null,null,""]
[null,null,null,""]
[null,null,null,{"$f":"IF(C1545<>\"\",YEAR(TODAY())-YEAR(C1545),\"\")","v":""}]
[null,null,null,""]
[null,null,null,""]
[null,null,null,""]
[null,null,null,""]
[null,null,null,""]
[null,null,null,""]
[null,null,null,""]
[null,null,null,""]
[null,null,null,""]
[null,null,null,""]
[null,null,null,""]
[null,null,null,""]
[null,null,null,""]
[null,null,null,""]
[null,null,null,""]
[null,null,null,""]
[null,null,null,""]
[null,null,null,""]
[null,null,null,""]
[null,null,null,""]
[null,null,null,""]
[null,null,null,""]
[null,null,null,""]
[null,null,null,""]
[null,null,null,""]
[null,null,null,""]
[null,null,null,""]
[null,null,null,""]
[null,null,null,""]
[null,null,null,""]
[null,null,null,""]
[null,null,null,""]
[null,null,null,""]
[null,null,null,""]
[null,null,null,""]
[null,null,null,""]
[null,null,null,""]
[null,null,null,""]
[null,null,null,""]
[null,null,null,""]
[null,null,null,""]
[null,null,null,""]
[null,null,null,""]
[null,null,null,""]
[null,null,null,""]
[null,null,null,""]
[null,null,null,""]
[null,null,null,""]
[null,null,null,""]
[null,null,null,""]
[null,null,null,""]
[null,null,null,""]
[null,null,null,""]
[null,null,null,""]
[null,null,null,""]
[null,null,null,""]
[null,null,null,""]
[null,null,null,""]
[null,null,null,""]
[null,null,null,""]
[null,null,null,""]
[null,null,null,""]
[null,null,null,""]
[null,null,null,{"$f":"IF(C1609<>\"\",YEAR(TODAY())-YEAR(C1609),\"\")","v":""}]
[null,null,null,""]
[null,null,null,""]
[null,null,null,""]
[null,null,null,""]
[null,null,null,""]
[null,null,null,""]
[null,null,null,""]
[null,null,null,""]
[null,null,null,""]
[null,null,null,""]
[null,null,null,""]
[null,null,null,""]
[null,null,null,""]
[null,null,null,""]
[null,null,null,""]
[null,null,null,""]
[null,null,null,""]
[null,null,null,""]
[null,null,null,""]
[null,null,null,""]
[null,null,null,""]
[null,null,null,""]
[null,null,null,""]
[null,null,null,""]
[null,null,null,""]
[null,null,null,""]
[null,null,null,""]
[null,null,null,""]
[null,null,null,""]
[null,null,null,""]
[null,null,null,""]
[null,null,null,""]
[null,null,null,""]
[null,null,null,""]
[null,null,null,""]
[null,null,null,""]
[null,null,null,""]
[null,null,null,""]
[null,null,null,""]
[null,null,null,""]
[null,null,null,""]
[null,null,null,""]
[null,null,null,""]
[null,null,null,""]
[null,null,null,""]
[null,null,null,""]
[null,null,null,""]
[null,null,null,""]
[null,null,null,""]
[null,null,null,""]
[null,null,null,""]
[null,null,null,""]
[null,null,null,""]
[null,null,null,""]
[null,null,null,""]
[null,null,null,""]
[null,null,null,""]
[null,null,null,""]
[null,null,null,""]
[null,null,null,""]
[null,null,null,""]
[null,null,null,""]
[null,null,null,""]
[null,null,null,{"$f":"IF(C1673<>\"\",YEAR(TODAY())-YEAR(C1673),\"\")","v":""}]
[null,null,null,""]
[null,null,null,""]
[null,null,null,""]
[null,null,null,""]
[null,null,null,""]
[null,null,null,""]
[null,null,null,""]
[null,null,null,""]
[null,null,null,""]
[null,null,null,""]
[null,null,null,""]
[null,null,null,""]
[null,null,null,""]
[null,null,null,""]
[null,null,null,""]
[null,null,null,""]
[null,null,null,""]
[null,null,null,""]
[null,null,null,""]
[null,null,null,""]
[null,null,null,""]
[null,null,null,""]
[null,null,null,""]
[null,null,null,""]
[null,null,null,""]
[null,null,null,""]
[null,null,null,""]
[null,null,null,""]
[null,null,null,""]
[null,null,null,""]
[null,null,null,""]
[null,null,null,""]
[null,null,null,""]
[null,null,null,""]
[null,null,null,""]
[null,null,null,""]
[null,null,null,""]
[null,null,null,""]
[null,null,null,""]
[null,null,null,""]
[null,null,null,""]
[null,null,null,""]
[null,null,null,""]
[null,null,null,""]
[null,null,null,""]
[null,null,null,""]
[null,null,null,""]
[null,null,null,""]
[null,null,null,""]
[null,null,null,""]
[null,null,null,""]
[null,null,null,""]
[null,null,null,""]
[null,null,null,""]
[null,null,null,""]
[null,null,null,""]
[null,null,null,""]
[null,null,null,""]
[null,null,null,""]
[null,null,null,""]
[null,null,null,""]
[null,null,null,""]
[null,null,null,""]
[null,null,null,{"$f":"IF(C1737<>\"\",YEAR(TODAY())-YEAR(C1737),\"\")","v":""}]
[null,null,null,""]
[null,null,null,""]
[null,null,null,""]
[null,null,null,""]
[null,null,null,""]
[null,null,null,""]
[null,null,null,""]
[null,null,null,""]
[null,null,null,""]
[null,null,null,""]
[null,null,null,""]
[null,null,null,""]
[null,null,null,""]
[null,null,null,""]
[null,null,null,""]
[null,null,null,""]
[null,null,null,""]
[null,null,null,""]
[null,null,null,""]
[null,null,null,""]
[null,null,null,""]
[null,null,null,""]
[null,null,null,""]
[null,null,null,""]
[null,null,null,""]
[null,null,null,""]
[null,null,null,""]
[null,null,null,""]
[null,null,null,""]
[null,null,null,""]
[null,null,null,""]
[null,null,null,""]
[null,null,null,""]
[null,null,null,""]
[null,null,null,""]
[null,null,null,""]
[null,null,null,""]
[null,null,null,""]
[null,null,null,""]
[null,null,null,""]
[null,null,null,""]
[null,null,null,""]
[null,null,null,""]
[null,null,null,""]
[null,null,null,""]
[null,null,null,""]
[null,null,null,""]
[null,null,null,""]
[null,null,null,""]
[null,null,null,""]
[null,null,null,""]
[null,null,null,""]
[null,null,null,""]
[null,null,null,""]
[null,null,null,""]
[null,null,null,""]
[null,null,null,""]
[null,null,null,""]
[null,null,null,""]
[null,null,null,""]
[null,null,null,""]
[null,null,null,""]
[null,null,null,""]
[null,null,null,{"$f":"IF(C1801<>\"\",YEAR(TODAY())-YEAR(C1801),\"\")","v":""}]
[null,null,null,""]
[null,null,null,""]
[null,null,null,""]
[null,null,null,""]
[null,null,null,""]
[null,null,null,""]
[null,null,null,""]
[null,null,null,""]
[null,null,null,""]
[null,null,null,""]
[null,null,null,""]
[null,null,null,""]
[null,null,null,""]
[null,null,null,""]
[null,null,null,""]
[null,null,null,""]
[null,null,null,""]
[null,null,null,""]
[null,null,null,""]
[null,null,null,""]
[null,null,null,""]
[null,null,null,""]
[null,null,null,""]
[null,null,null,""]
[null,null,null,""]
[null,null,null,""]
[null,null,null,""]
[null,null,null,""]
[null,null,null,""]
[null,null,null,""]
[null,null,null,""]
[null,null,null,""]
[null,null,null,""]
[null,null,null,""]
[null,null,null,""]
[null,null,null,""]
[null,null,null,""]
[null,null,null,""]
[null,null,null,""]
[null,null,null,""]
[null,null,null,""]
[null,null,null,""]
[null,null,null,""]
[null,null,null,""]
[null,null,null,""]
[null,null,null,""]
[null,null,null,""]
[null,null,null,""]
[null,null,null,""]
[null,null,null,""]
[null,null,null,""]
[null,null,null,""]
[null,null,null,""]
[null,null,null,""]
[null,null,null,""]
[null,null,null,""]
[null,null,null,""]
[null,null,null,""]
[null,null,null,""]
[null,null,null,""]
[null,null,null,""]
[null,null,null,""]
[null,null,null,""]
[null,null,null,{"$f":"IF(C1865<>\"\",YEAR(TODAY())-YEAR(C1865),\"\")","v":""}]
[null,null,null,""]
[null,null,null,""]
[null,null,null,""]
[null,null,null,""]
[null,null,null,""]
[null,null,null,""]
[null,null,null,""]
[null,null,null,""]
[null,null,null,""]
[null,null,null,""]
[null,null,null,""]
[null,null,null,""]
[null,null,null,""]
[null,null,null,""]
[null,null,null,""]
[null,null,null,""]
[null,null,null,""]
[null,null,null,""]
[null,null,null,""]
[null,null,null,""]
[null,null,null,""]
[null,null,null,""]
[null,null,null,""]
[null,null,null,""]
[null,null,null,""]
[null,null,null,""]
[null,null,null,""]
[null,null,null,""]
[null,null,null,""]
[null,null,null,""]
[null,null,null,""]
[null,null,null,""]
[null,null,null,""]
[null,null,null,""]
[null,null,null,""]
[null,null,null,""]
[null,null,null,""]
[null,null,null,""]
[null,null,null,""]
[null,null,null,""]
[null,null,null,""]
[null,null,null,""]
[null,null,null,""]
[null,null,null,""]
[null,null,null,""]
[null,null,null,""]
[null,null,null,""]
[null,null,null,""]
[null,null,null,""]
[null,null,null,""]
[null,null,null,""]
[null,null,null,""]
[null,null,null,""]
[null,null,null,""]
[null,null,null,""]
[null,null,null,""]
[null,null,null,""]
[null,null,null,""]
[null,null,null,""]
[null,null,null,""]
[null,null,null,""]
[null,null,null,""]
[null,null,null,""]
[null,null,null,{"$f":"IF(C1929<>\"\",YEAR(TODAY())-YEAR(C1929),\"\")","v":""}]
[null,null,null,""]
[null,null,null,""]
[null,null,null,""]
[null,null,null,""]
[null,null,null,""]
[null,null,null,""]
[null,null,null,""]
[null,null,null,""]
[null,null,null,""]
[null,null,null,""]
[null,null,null,""]
[null,null,null,""]
[null,null,null,""]
[null,null,null,""]
[null,null,null,""]
[null,null,null,""]
[null,null,null,""]
[null,null,null,""]
[null,null,null,""]
[null,null,null,""]
[null,null,null,""]
[null,null,null,""]
[null,null,null,""]
[null,null,null,""]
[null,null,null,""]
[null,null,null,""]
[null,null,null,""]
[null,null,null,""]
[null,null,null,""]
[null,null,null,""]
[null,null,null,""]
[null,null,null,""]
[null,null,null,""]
[null,null,null,""]
[null,null,null,""]
[null,null,null,""]
[null,null,null,""]
[null,null,null,""]
[null,null,null,""]
[null,null,null,""]
[null,null,null,""]
[null,null,null,""]
[null,null,null,""]
[null,null,null,""]
[null,null,null,""]
[null,null,null,""]
[null,null,null,""]
[null,null,null,""]
[null,null,null,""]
[null,null,null,""]
[null,null,null,""]
[null,null,null,""]
[null,null,null,""]
[null,null,null,""]
[null,null,null,""]
[null,null,null,""]
[null,null,null,""]
[null,null,null,""]
[null,null,null,""]
[null,null,null,""]
[null,null,null,""]
[null,null,null,""]
[null,null,null,""]
[null,null,null,{"$f":"IF(C1993<>\"\",YEAR(TODAY())-YEAR(C1993),\"\")","v":""}]
[null,null,null,""]
[null,null,null,""]
[null,null,null,""]
[null,null,null,""]
[null,null,null,""]
[null,null,null,""]
[null,null,null,""]
[null,null,null,""]
[null,null,null,""]
[null,null,null,""]
[null,null,null,""]
[null,null,null,""]
[null,null,null,""]
[null,null,null,""]
[null,null,null,""]
[null,null,null,""]
[null,null,null,""]
[null,null,null,""]
[null,null,null,""]
[null,null,null,""]
[null,null,null,""]
[null,null,null,""]
[null,null,null,""]
[null,null,null,""]
[null,null,null,""]
[null,null,null,""]
[null,null,null,""]
[null,null,null,""]
[null,null,null,""]
[null,null,null,""]
[null,null,null,""]
[null,null,null,""]
[null,null,null,""]
[null,null,null,""]
[null,null,null,""]
[null,null,null,""]
[null,null,null,""]
[null,null,null,""]
[null,null,null,""]
[null,null,null,""]
[null,null,null,""]
[null,null,null,""]
[null,null,null,""]
[null,null,null,""]
[null,null,null,""]
[null,null,null,""]
[null,null,null,""]
[null,null,null,""]
[null,null,null,""]
[null,null,null,""]
[null,null,null,""]
[null,null,null,""]
[null,null,null,""]
[null,null,null,""]
[null,null,null,""]
[null,null,null,""]
[null,null,null,""]
[null,null,null,""]
[null,null,null,""]
[null,null,null,""]
[null,null,null,""]
[null,null,null,""]
[null,null,null,""]
[null,null,null,{"$f":"IF(C2057<>\"\",YEAR(TODAY())-YEAR(C2057),\"\")","v":""}]
[null,null,null,""]
[null,null,null,""]
[null,null,null,""]
[null,null,null,""]
[null,null,null,""]
[null,null,null,""]
[null,null,null,""]
[null,null,null,""]
[null,null,null,""]
[null,null,null,""]
[null,null,null,""]
[null,null,null,""]
[null,null,null,""]
[null,null,null,""]
[null,null,null,""]
[null,null,null,""]
[null,null,null,""]
[null,null,null,""]
[null,null,null,""]
[null,null,null,""]
[null,null,null,""]
[null,null,null,""]
[null,null,null,""]
[null,null,null,""]
[null,null,null,""]
[null,null,null,""]
[null,null,null,""]
[null,null,null,""]
[null,null,null,""]
[null,null,null,""]
[null,null,null,""]
[null,null,null,""]
[null,null,null,""]
[null,null,null,""]
[null,null,null,""]
[null,null,null,""]
[null,null,null,""]
[null,null,null,""]
[null,null,null,""]
[null,null,null,""]
[null,null,null,""]
[null,null,null,""]
[null,null,null,""]
[null,null,null,""]
[null,null,null,""]
[null,null,null,""]
[null,null,null,""]
[null,null,null,""]
[null,null,null,""]
[null,null,null,""]
[null,null,null,""]
[null,null,null,""]
[null,null,null,""]
[null,null,null,""]
[null,null,null,""]
[null,null,null,""]
[null,null,null,""]
[null,null,null,""]
[null,null,null,""]
[null,null,null,""]
[null,null,null,""]
[null,null,null,""]
[null,null,null,""]
[null,null,null,{"$f":"IF(C2121<>\"\",YEAR(TODAY())-YEAR(C2121),\"\")","v":""}]
[null,null,null,""]
[null,null,null,""]
[null,null,null,""]
[null,null,null,""]
[null,null,null,""]
[null,null,null,""]
[null,null,null,""]
[null,null,null,""]
[null,null,null,""]
[null,null,null,""]
[null,null,null,""]
[null,null,null,""]
[null,null,null,""]
[null,null,null,""]
[null,null,null,""]
[null,null,null,""]
[null,null,null,""]
[null,null,null,""]
[null,null,null,""]
[null,null,null,""]
[null,null,null,""]
[null,null,null,""]
[null,null,null,""]
[null,null,null,""]
[null,null,null,""]
[null,null,null,""]
[null,null,null,""]
[null,null,null,""]
[null,null,null,""]
[null,null,null,""]
[null,null,null,""]
[null,null,null,""]
[null,null,null,""]
[null,null,null,""]
[null,null,null,""]
[null,null,null,""]
[null,null,null,""]
[null,null,null,""]
[null,null,null,""]
[null,null,null,""]
[null,null,null,""]
[null,null,null,""]
[null,null,null,""]
[null,null,null,""]
[null,null,null,""]
[null,null,null,""]
[null,null,null,""]
[null,null,null,""]
[null,null,null,""]
[null,null,null,""]
[null,null,null,""]
[null,null,null,""]
[null,null,null,""]
[null,null,null,""]
[null,null,null,""]
[null,null,null,""]
[null,null,null,""]
[null,null,null,""]
[null,null,null,""]
[null,null,null,""]
[null,null,null,""]
[null,null,null,""]
[null,null,null,""]
[null,null,null,{"$f":"IF(C2185<>\"\",YEAR(TODAY())-YEAR(C2185),\"\")","v":""}]
[null,null,null,""]
[null,null,null,""]
[null,null,null,""]
[null,null,null,""]
[null,null,null,""]
[null,null,null,""]
[null,null,null,""]
[null,null,null,""]
[null,null,null,""]
[null,null,null,""]
[null,null,null,""]
[null,null,null,""]
[null,null,null,""]
[null,null,null,""]
[null,null,null,""]
[null,null,null,""]
[null,null,null,""]
[null,null,null,""]
[null,null,null,""]
[null,null,null,""]
[null,null,null,""]
[null,null,null,""]
[null,null,null,""]
[null,null,null,""]
[null,null,null,""]
[null,null,null,""]
[null,null,null,""]
[null,null,null,""]
[null,null,null,""]
[null,null,null,""]
[null,null,null,""]
[null,null,null,""]
[null,null,null,""]
[null,null,null,""]
[null,null,null,""]
[null,null,null,""]
[null,null,null,""]
[null,null,null,""]
[null,null,null,""]
[null,null,null,""]
[null,null,null,""]
[null,null,null,""]
[null,null,null,""]
[null,null,null,""]
[null,null,null,""]
[null,null,null,""]
[null,null,null,""]
[null,null,null,""]
[null,null,null,""]
[null,null,null,""]
[null,null,null,""]
[null,null,null,""]
[null,null,null,""]
[null,null,null,""]
[null,null,null,""]
[null,null,null,""]
[null,null,null,""]
[null,null,null,""]
[null,null,null,""]
[null,null,null,""]
[null,null,null,""]
[null,null,null,""]
[null,null,null,""]
[null,null,null,{"$f":"IF(C2249<>\"\",YEAR(TODAY())-YEAR(C2249),\"\")","v":""}]
[null,null,null,""]
[null,null,null,""]
[null,null,null,""]
[null,null,null,""]
[null,null,null,""]
[null,null,null,""]
[null,null,null,""]
[null,null,null,""]
[null,null,null,""]
[null,null,null,""]
[null,null,null,""]
[null,null,null,""]
[null,null,null,""]
[null,null,null,""]
[null,null,null,""]
[null,null,null,""]
[null,null,null,""]
[null,null,null,""]
[null,null,null,""]
[null,null,null,""]
[null,null,null,""]
[null,null,null,""]
[null,null,null,""]
[null,null,null,""]
[null,null,null,""]
[null,null,null,""]
[null,null,null,""]
[null,null,null,""]
[null,null,null,""]
[null,null,null,""]
[null,null,null,""]
[null,null,null,""]
[null,null,null,""]
[null,null,null,""]
[null,null,null,""]
[null,null,null,""]
[null,null,null,""]
[null,null,null,""]
[null,null,null,""]
[null,null,null,""]
[null,null,null,""]
[null,null,null,""]
[null,null,null,""]
[null,null,null,""]
[null,null,null,""]
[null,null,null,""]
[null,null,null,""]
[null,null,null,""]
[null,null,null,""]
[null,null,null,""]
[null,null,null,""]
[null,null,null,""]
[null,null,null,""]
[null,null,null,""]
[null,null,null,""]
[null,null,null,""]
[null,null,null,""]
[null,null,null,""]
[null,null,null,""]
[null,null,null,""]
[null,null,null,""]
[null,null,null,""]
[null,null,null,""]
[null,null,null,{"$f":"IF(C2313<>\"\",YEAR(TODAY())-YEAR(C2313),\"\")","v":""}]
[null,null,null,""]
[null,null,null,""]
[null,null,null,""]
[null,null,null,""]
[null,null,null,""]
[null,null,null,""]
[null,null,null,""]
[null,null,null,""]
[null,null,null,""]
[null,null,null,""]
[null,null,null,""]
[null,null,null,""]
[null,null,null,""]
[null,null,null,""]
[null,null,null,""]
[null,null,null,""]
[null,null,null,""]
[null,null,null,""]
[null,null,null,""]
[null,null,null,""]
[null,null,null,""]
[null,null,null,""]
[null,null,null,""]
[null,null,null,""]
[null,null,null,""]
[null,null,null,""]
[null,null,null,""]
[null,null,null,""]
[null,null,null,""]
[null,null,null,""]
[null,null,null,""]
[null,null,null,""]
[null,null,null,""]
[null,null,null,""]
[null,null,null,""]
[null,null,null,""]
[null,null,null,""]
[null,null,null,""]
[null,null,null,""]
[null,null,null,""]
[null,null,null,""]
[null,null,null,""]
[null,null,null,""]
[null,null,null,""]
[null,null,null,""]
[null,null,null,""]
[null,null,null,""]
[null,null,null,""]
[null,null,null,""]
[null,null,null,""]
[null,null,null,""]
[null,null,null,""]
[null,null,null,""]
[null,null,null,""]
[null,null,null,""]
[null,null,null,""]
[null,null,null,""]
[null,null,null,""]
[null,null,null,""]
[null,null,null,""]
[null,null,null,""]
[null,null,null,""]
[null,null,null,""]
[null,null,null,{"$f":"IF(C2377<>\"\",YEAR(TODAY())-YEAR(C2377),\"\")","v":""}]
[null,null,null,""]
[null,null,null,""]
[null,null,null,""]
[null,null,null,""]
[null,null,null,""]
[null,null,null,""]
[null,null,null,""]
[null,null,null,""]
[null,null,null,""]
[null,null,null,""]
[null,null,null,""]
[null,null,null,""]
[null,null,null,""]
[null,null,null,""]
[null,null,null,""]
[null,null,null,""]
[null,null,null,""]
[null,null,null,""]
[null,null,null,""]
[null,null,null,""]
[null,null,null,""]
[null,null,null,""]
[null,null,null,""]
[null,null,null,""]
[null,null,null,""]
[null,null,null,""]
[null,null,null,""]
[null,null,null,""]
[null,null,null,""]
[null,null,null,""]
[null,null,null,""]
[null,null,null,""]
[null,null,null,""]
[null,null,null,""]
[null,null,null,""]
[null,null,null,""]
[null,null,null,""]
[null,null,null,""]
[null,null,null,""]
[null,null,null,""]
[null,null,null,""]
[null,null,null,""]
[null,null,null,""]
[null,null,null,""]
[null,null,null,""]
[null,null,null,""]
[null,null,null,""]
[null,null,null,""]
[null,null,null,""]
[null,null,null,""]
[null,null,null,""]
[null,null,null,""]
[null,null,null,""]
[null,null,null,""]
[null,null,null,""]
[null,null,null,""]
[null,null,null,""]
[null,null,null,""]
[null,null,null,""]
[null,null,null,""]
[null,null,null,""]
[null,null,null,""]
[null,null,null,""]
[null,null,null,{"$f":"IF(C2441<>\"\",YEAR(TODAY())-YEAR(C2441),\"\")","v":""}]
[null,null,null,""]
[null,null,null,""]
[null,null,null,""]
[null,null,null,""]
[null,null,null,""]
[null,null,null,""]
[null,null,null,""]
[null,null,null,""]
[null,null,null,""]
[null,null,null,""]
[null,null,null,""]
[null,null,null,""]
[null,null,null,""]
[null,null,null,""]
[null,null,null,""]
[null,null,null,""]
[null,null,null,""]
[null,null,null,""]
[null,null,null,""]
[null,null,null,""]
[null,null,null,""]
[null,null,null,""]
[null,null,null,""]
[null,null,null,""]
[null,null,null,""]
[null,null,null,""]
[null,null,null,""]
[null,null,null,""]
[null,null,null,""]
[null,null,null,""]
[null,null,null,""]
[null,null,null,""]
[null,null,null,""]
[null,null,null,""]
[null,null,null,""]
[null,null,null,""]
[null,null,null,""]
[null,null,null,""]
[null,null,null,""]
[null,null,null,""]
[null,null,null,""]
[null,null,null,""]
[null,null,null,""]
[null,null,null,""]
[null,null,null,""]
[null,null,null,""]
[null,null,null,""]
[null,null,null,""]
[null,null,null,""]
[null,null,null,""]
[null,null,null,""]
[null,null,null,""]
[null,null,null,""]
[null,null,null,""]
[null,null,null,""]
[null,null,null,""]
[null,null,null,""]
[null,null,null,""]
[null,null,null,""]
[null,null,null,""]
[null,null,null,""]
[null,null,null,""]
[null,null,null,""]
[null,null,null,{"$f":"IF(C2505<>\"\",YEAR(TODAY())-YEAR(C2505),\"\")","v":""}]
[null,null,null,""]
[null,null,null,""]
[null,null,null,""]
[null,null,null,""]
[null,null,null,""]
[null,null,null,""]
[null,null,null,""]
[null,null,null,""]
[null,null,null,""]
[null,null,null,""]
[null,null,null,""]
[null,null,null,""]
[null,null,null,""]
[null,null,null,""]
[null,null,null,""]
[null,null,null,""]
[null,null,null,""]
[null,null,null,""]
[null,null,null,""]
[null,null,null,""]
[null,null,null,""]
[null,null,null,""]
[null,null,null,""]
[null,null,null,""]
[null,null,null,""]
[null,null,null,""]
[null,null,null,""]
[null,null,null,""]
[null,null,null,""]
[null,null,null,""]
[null,null,null,""]
[null,null,null,""]
[null,null,null,""]
[null,null,null,""]
[null,null,null,""]
[null,null,null,""]
[null,null,null,""]
[null,null,null,""]
[null,null,null,""]
[null,null,null,""]
[null,null,null,""]
[null,null,null,""]
[null,null,null,""]
[null,null,null,""]
[null,null,null,""]
[null,null,null,""]
[null,null,null,""]
[null,null,null,""]
[null,null,null,""]
[null,null,null,""]
[null,null,null,""]
[null,null,null,""]
[null,null,null,""]
[null,null,null,""]
[null,null,null,""]
[null,null,null,""]
[null,null,null,""]
[null,null,null,""]
[null,null,null,""]
[null,null,null,""]
[null,null,null,""]
[null,null,null,""]
[null,null,null,""]
[null,null,null,{"$f":"IF(C2569<>\"\",YEAR(TODAY())-YEAR(C2569),\"\")","v":""}]
[null,null,null,""]
[null,null,null,""]
[null,null,null,""]
[null,null,null,""]
[null,null,null,""]
[null,null,null,""]
[null,null,null,""]
[null,null,null,""]
[null,null,null,""]
[null,null,null,""]
[null,null,null,""]
[null,null,null,""]
[null,null,null,""]
[null,null,null,""]
[null,null,null,""]
[null,null,null,""]
[null,null,null,""]
[null,null,null,""]
[null,null,null,""]
[null,null,null,""]
[null,null,null,""]
[null,null,null,""]
[null,null,null,""]
[null,null,null,""]
[null,null,null,""]
[null,null,null,""]
[null,null,null,""]
[null,null,null,""]
[null,null,null,""]
[null,null,null,""]
[null,null,null,""]
[null,null,null,""]
[null,null,null,""]
[null,null,null,""]
[null,null,null,""]
[null,null,null,""]
[null,null,null,""]
[null,null,null,""]
[null,null,null,""]
[null,null,null,""]
[null,null,null,""]
[null,null,null,""]
[null,null,null,""]
[null,null,null,""]
[null,null,null,""]
[null,null,null,""]
[null,null,null,""]
[null,null,null,""]
[null,null,null,""]
[null,null,null,""]
[null,null,null,""]
[null,null,null,""]
[null,null,null,""]
[null,null,null,""]
[null,null,null,""]
[null,null,null,""]
[null,null,null,""]
[null,null,null,""]
[null,null,null,""]
[null,null,null,""]
[null,null,null,""]
[null,null,null,""]
[null,null,null,""]
[null,null,null,{"$f":"IF(C2633<>\"\",YEAR(TODAY())-YEAR(C2633),\"\")","v":""}]
[null,null,null,""]
[null,null,null,""]
[null,null,null,""]
[null,null,null,""]
[null,null,null,""]
[null,null,null,""]
[null,null,null,""]
[null,null,null,""]
[null,null,null,""]
[null,null,null,""]
[null,null,null,""]
[null,null,null,""]
[null,null,null,""]
[null,null,null,""]
[null,null,null,""]
[null,null,null,""]
[null,null,null,""]
[null,null,null,""]
[null,null,null,""]
[null,null,null,""]
[null,null,null,""]
[null,null,null,""]
[null,null,null,""]
[null,null,null,""]
[null,null,null,""]
[null,null,null,""]
[null,null,null,""]
[null,null,null,""]
[null,null,null,""]
[null,null,null,""]
[null,null,null,""]
[null,null,null,""]
[null,null,null,""]
[null,null,null,""]
[null,null,null,""]
[null,null,null,""]
[null,null,null,""]
[null,null,null,""]
[null,null,null,""]
[null,null,null,""]
[null,null,null,""]
[null,null,null,""]
[null,null,null,""]
[null,null,null,""]
[null,null,null,""]
[null,null,null,""]
[null,null,null,""]
[null,null,null,""]
[null,null,null,""]
[null,null,null,""]
[null,null,null,""]
[null,null,null,""]
[null,null,null,""]
[null,null,null,""]
[null,null,null,""]
[null,null,null,""]
[null,null,null,""]
[null,null,null,""]
[null,null,null,""]
[null,null,null,""]
[null,null,null,""]
[null,null,null,""]
[null,null,null,""]
[null,null,null,{"$f":"IF(C2697<>\"\",YEAR(TODAY())-YEAR(C2697),\"\")","v":""}]
[null,null,null,""]
[null,null,null,""]
[null,null,null,""]
[null,null,null,""]
[null,null,null,""]
[null,null,null,""]
[null,null,null,""]
[null,null,null,""]
[null,null,null,""]
[null,null,null,""]
[null,null,null,""]
[null,null,null,""]
[null,null,null,""]
[null,null,null,""]
[null,null,null,""]
[null,null,null,""]
[null,null,null,""]
[null,null,null,""]
[null,null,null,""]
[null,null,null,""]
[null,null,null,""]
[null,null,null,""]
[null,null,null,""]
[null,null,null,""]
[null,null,null,""]
[null,null,null,""]
[null,null,null,""]
[null,null,null,""]
[null,null,null,""]
[null,null,null,""]
[null,null,null,""]
[null,null,null,""]
[null,null,null,""]
[null,null,null,""]
[null,null,null,""]
[null,null,null,""]
[null,null,null,""]
[null,null,null,""]
[null,null,null,""]
[null,null,null,""]
[null,null,null,""]
[null,null,null,""]
[null,null,null,""]
[null,null,null,""]
[null,null,null,""]
[null,null,null,""]
[null,null,null,""]
[null,null,null,""]
[null,null,null,""]
[null,null,null,""]
[null,null,null,""]
[null,null,null,""]
[null,null,null,""]
[null,null,null,""]
[null,null,null,""]
[null,null,null,""]
[null,null,null,""]
[null,null,null,""]
[null,null,null,""]
[null,null,null,""]
[null,null,null,""]
[null,null,null,""]
[null,null,null,""]
[null,null,null,{"$f":"IF(C2761<>\"\",YEAR(TODAY())-YEAR(C2761),\"\")","v":""}]
[null,null,null,""]
[null,null,null,""]
[null,null,null,""]
[null,null,null,""]
[null,null,null,""]
[null,null,null,""]
[null,null,null,""]
[null,null,null,""]
[null,null,null,""]
[null,null,null,""]
[null,null,null,""]
[null,null,null,""]
[null,null,null,""]
[null,null,null,""]
[null,null,null,""]
[null,null,null,""]
[null,null,null,""]
[null,null,null,""]
[null,null,null,""]
[null,null,null,""]
[null,null,null,""]
[null,null,null,""]
[null,null,null,""]
[null,null,null,""]
[null,null,null,""]
[null,null,null,""]
[null,null,null,""]
[null,null,null,""]
[null,null,null,""]
[null,null,null,""]
[null,null,null,""]
[null,null,null,""]
[null,null,null,""]
[null,null,null,""]
[null,null,null,""]
[null,null,null,""]
[null,null,null,""]
[null,null,null,""]
[null,null,null,""]
[null,null,null,""]
[null,null,null,""]
[null,null,null,""]
[null,null,null,""]
[null,null,null,""]
[null,null,null,""]
[null,null,null,""]
[null,null,null,""]
[null,null,null,""]
[null,null,null,""]
[null,null,null,""]
[null,null,null,""]
[null,null,null,""]
[null,null,null,""]
[null,null,null,""]
[null,null,null,""]
[null,null,null,""]
[null,null,null,""]
[null,null,null,""]
[null,null,null,""]
[null,null,null,""]
[null,null,null,""]
[null,null,null,""]
[null,null,null,""]
[null,null,null,{"$f":"IF(C2825<>\"\",YEAR(TODAY())-YEAR(C2825),\"\")","v":""}]
[null,null,null,""]
[null,null,null,""]
[null,null,null,""]
[null,null,null,""]
[null,null,null,""]
[null,null,null,""]
[null,null,null,""]
[null,null,null,""]
[null,null,null,""]
[null,null,null,""]
[null,null,null,""]
[null,null,null,""]
[null,null,null,""]
[null,null,null,""]
[null,null,null,""]
[null,null,null,""]
[null,null,null,""]
[null,null,null,""]
[null,null,null,""]
[null,null,null,""]
[null,null,null,""]
[null,null,null,""]
[null,null,null,""]
[null,null,null,""]
[null,null,null,""]
[null,null,null,""]
[null,null,null,""]
[null,null,null,""]
[null,null,null,""]
[null,null,null,""]
[null,null,null,""]
[null,null,null,""]
[null,null,null,""]
[null,null,null,""]
[null,null,null,""]
[null,null,null,""]
[null,null,null,""]
[null,null,null,""]
[null,null,null,""]
[null,null,null,""]
[null,null,null,""]
[null,null,null,""]
[null,null,null,""]
[null,null,null,""]
[null,null,null,""]
[null,null,null,""]
[null,null,null,""]
[null,null,null,""]
[null,null,null,""]
[null,null,null,""]
[null,null,null,""]
[null,null,null,""]
[null,null,null,""]
[null,null,null,""]
[null,null,null,""]
[null,null,null,""]
[null,null,null,""]
[null,null,null,""]
[null,null,null,""]
[null,null,null,""]
[null,null,null,""]
[null,null,null,""]
[null,null,null,""]
[null,null,null,{"$f":"IF(C2889<>\"\",YEAR(TODAY())-YEAR(C2889),\"\")","v":""}]
[null,null,null,""]
[null,null,null,""]
[null,null,null,""]
[null,null,null,""]
[null,null,null,""]
[null,null,null,""]
[null,null,null,""]
[null,null,null,""]
[null,null,null,""]
[null,null,null,""]
[null,null,null,""]
[null,null,null,""]
[null,null,null,""]
[null,null,null,""]
[null,null,null,""]
[null,null,null,""]
[null,null,null,""]
[null,null,null,""]
[null,null,null,""]
[null,null,null,""]
[null,null,null,""]
[null,null,null,""]
[null,null,null,""]
[null,null,null,""]
[null,null,null,""]
[null,null,null,""]
[null,null,null,""]
[null,null,null,""]
[null,null,null,""]
[null,null,null,""]
[null,null,null,""]
[null,null,null,""]
[null,null,null,""]
[null,null,null,""]
[null,null,null,""]
[null,null,null,""]
[null,null,null,""]
[null,null,null,""]
[null,null,null,""]
[null,null,null,""]
[null,null,null,""]
[null,null,null,""]
[null,null,null,""]
[null,null,null,""]
[null,null,null,""]
[null,null,null,""]
[null,null,null,""]
[null,null,null,""]
[null,null,null,""]
[null,null,null,""]
[null,null,null,""]
[null,null,null,""]
[null,null,null,""]
[null,null,null,""]
[null,null,null,""]
[null,null,null,""]
[null,null,null,""]
[null,null,null,""]
[null,null,null,""]
[null,null,null,""]
[null,null,null,""]
[null,null,null,""]
[null,null,null,""]
[null,null,null,{"$f":"IF(C2953<>\"\",YEAR(TODAY())-YEAR(C2953),\"\")","v":""}]
[null,null,null,""]
[null,null,null,""]
[null,null,null,""]
[null,null,null,""]
[null,null,null,""]
[null,null,null,""]
[null,null,null,""]
[null,null,null,""]
[null,null,null,""]
[null,null,null,""]
[null,null,null,""]
[null,null,null,""]
[null,null,null,""]
[null,null,null,""]
[null,null,null,""]
[null,null,null,""]
[null,null,null,""]
[null,null,null,""]
[null,null,null,""]
[null,null,null,""]
[null,null,null,""]
[null,null,null,""]
[null,null,null,""]
[null,null,null,""]
[null,null,null,""]
[null,null,null,""]
[null,null,null,""]
[null,null,null,""]
[null,null,null,""]
[null,null,null,""]
[null,null,null,""]
[null,null,null,""]
[null,null,null,""]
[null,null,null,""]
[null,null,null,""]
[null,null,null,""]
[null,null,null,""]
[null,null,null,""]
[null,null,null,""]
[null,null,null,""]
[null,null,null,""]
[null,null,null,""]
[null,null,null,""]
[null,null,null,""]
[null,null,null,""]
[null,null,null,""]
[null,null,null,""]
[null,null,null,""]
[null,null,null,""]
[null,null,null,""]
[null,null,null,""]
[null,null,null,""]
[null,null,null,""]
[null,null,null,""]
[null,null,null,""]
[null,null,null,""]
[null,null,null,""]
[null,null,null,""]
[null,null,null,""]
[null,null,null,""]
[null,null,null,""]
[null,null,null,""]
[null,null,null,""]
[null,null,null,{"$f":"IF(C3017<>\"\",YEAR(TODAY())-YEAR(C3017),\"\")","v":""}]
[null,null,null,""]
[null,null,null,""]
[null,null,null,""]
[null,null,null,""]
[null,null,null,""]
[null,null,null,""]
[null,null,null,""]
[null,null,null,""]
[null,null,null,""]
[null,null,null,""]
[null,null,null,""]
[null,null,null,""]
[null,null,null,""]
[null,null,null,""]
[null,null,null,""]
[null,null,null,""]
[null,null,null,""]
[null,null,null,""]
[null,null,null,""]
[null,null,null,""]
[null,null,null,""]
[null,null,null,""]
[null,null,null,""]
[null,null,null,""]
[null,null,null,""]
[null,null,null,""]
[null,null,null,""]
[null,null,null,""]
[null,null,null,""]
[null,null,null,""]
[null,null,null,""]
[null,null,null,""]
[null,null,null,""]
[null,null,null,""]
[null,null,null,""]
[null,null,null,""]
[null,null,null,""]
[null,null,null,""]
[null,null,null,""]
[null,null,null,""]
[null,null,null,""]
[null,null,null,""]
[null,null,null,""]
[null,null,null,""]
[null,null,null,""]
[null,null,null,""]
[null,null,null,""]
[null,null,null,""]
[null,null,null,""]
[null,null,null,""]
[null,null,null,""]
[null,null,null,""]
[null,null,null,""]
[null,null,null,""]
[null,null,null,""]
[null,null,null,""]
[null,null,null,""]
[null,null,null,""]
[null,null,null,""]
[null,null,null,""]
[null,null,null,""]
[null,null,null,""]
[null,null,null,""]
[null,null,null,{"$f":"IF(C3081<>\"\",YEAR(TODAY())-YEAR(C3081),\"\")","v":""}]
[null,null,null,""]
[null,null,null,""]
[null,null,null,""]
[null,null,null,""]
[null,null,null,""]
[null,null,null,""]
[null,null,null,""]
[null,null,null,""]
[null,null,null,""]
[null,null,null,""]
[null,null,null,""]
[null,null,null,""]
[null,null,null,""]
[null,null,null,""]
[null,null,null,""]
[null,null,null,""]
[null,null,null,""]
[null,null,null,""]
[null,null,null,""]
[null,null,null,""]
[null,null,null,""]
[null,null,null,""]
[null,null,null,""]
[null,null,null,""]
[null,null,null,""]
[null,null,null,""]
[null,null,null,""]
[null,null,null,""]
[null,null,null,""]
[null,null,null,""]
[null,null,null,""]
[null,null,null,""]
[null,null,null,""]
[null,null,null,""]
[null,null,null,""]
[null,null,null,""]
[null,null,null,""]
[null,null,null,""]
[null,null,null,""]
[null,null,null,""]
[null,null,null,""]
[null,null,null,""]
[null,null,null,""]
[null,null,null,""]
[null,null,null,""]
[null,null,null,""]
[null,null,null,""]
[null,null,null,""]
[null,null,null,""]
[null,null,null,""]
[null,null,null,""]
[null,null,null,""]
[null,null,null,""]
[null,null,null,""]
[null,null,null,""]
[null,null,null,""]
[null,null,null,""]
[null,null,null,""]
[null,null,null,""]
[null,null,null,""]
[null,null,null,""]
[null,null,null,""]
[null,null,null,""]
[null,null,null,{"$f":"IF(C3145<>\"\",YEAR(TODAY())-YEAR(C3145),\"\")","v":""}]
[null,null,null,""]
[null,null,null,""]
[null,null,null,""]
[null,null,null,""]
[null,null,null,""]
[null,null,null,""]
[null,null,null,""]
[null,null,null,""]
[null,null,null,""]
[null,null,null,""]
[null,null,null,""]
[null,null,null,""]
[null,null,null,""]
[null,null,null,""]
[null,null,null,""]
[null,null,null,""]
[null,null,null,""]
[null,null,null,""]
[null,null,null,""]
[null,null,null,""]
[null,null,null,""]
[null,null,null,""]
[null,null,null,""]
[null,null,null,""]
[null,null,null,""]
[null,null,null,""]
[null,null,null,""]
[null,null,null,""]
[null,null,null,""]
[null,null,null,""]
[null,null,null,""]
[null,null,null,""]
[null,null,null,""]
[null,null,null,""]
[null,null,null,""]
[null,null,null,""]
[null,null,null,""]
[null,null,null,""]
[null,null,null,""]
[null,null,null,""]
[null,null,null,""]
[null,null,null,""]
[null,null,null,""]
[null,null,null,""]
[null,null,null,""]
[null,null,null,""]
[null,null,null,""]
[null,null,null,""]
[null,null,null,""]
[null,null,null,""]
[null,null,null,""]
[null,null,null,""]
[null,null,null,""]
[null,null,null,""]
[null,null,null,""]
[null,null,null,""]
[null,null,null,""]
[null,null,null,""]
[null,null,null,""]
[null,null,null,""]
[null,null,null,""]
[null,null,null,""]
[null,null,null,""]
[null,null,null,{"$f":"IF(C3209<>\"\",YEAR(TODAY())-YEAR(C3209),\"\")","v":""}]
[null,null,null,""]
[null,null,null,""]
[null,null,null,""]
[null,null,null,""]
[null,null,null,""]
[null,null,null,""]
[null,null,null,""]
[null,null,null,""]
[null,null,null,""]
[null,null,null,""]
[null,null,null,""]
[null,null,null,""]
[null,null,null,""]
[null,null,null,""]
[null,null,null,""]
[null,null,null,""]
[null,null,null,""]
[null,null,null,""]
[null,null,null,""]
[null,null,null,""]
[null,null,null,""]
[null,null,null,""]
[null,null,null,""]
[null,null,null,""]
[null,null,null,""]
[null,null,null,""]
[null,null,null,""]
[null,null,null,""]
[null,null,null,""]
[null,null,null,""]
[null,null,null,""]
[null,null,null,""]
[null,null,null,""]
[null,null,null,""]
[null,null,null,""]
[null,null,null,""]
[null,null,null,""]
[null,null,null,""]
[null,null,null,""]
[null,null,null,""]
[null,null,null,""]
[null,null,null,""]
[null,null,null,""]
[null,null,null,""]
[null,null,null,""]
[null,null,null,""]
[null,null,null,""]
[null,null,null,""]
[null,null,null,""]
[null,null,null,""]
[null,null,null,""]
[null,null,null,""]
[null,null,null,""]
[null,null,null,""]
[null,null,null,""]
[null,null,null,""]
[null,null,null,""]
[null,null,null,""]
[null,null,null,""]
[null,null,null,""]
[null,null,null,""]
[null,null,null,""]
[null,null,null,""]
[null,null,null,{"$f":"IF(C3273<>\"\",YEAR(TODAY())-YEAR(C3273),\"\")","v":""}]
[null,null,null,""]
[null,null,null,""]
[null,null,null,""]
[null,null,null,""]
[null,null,null,""]
[null,null,null,""]
[null,null,null,""]
[null,null,null,""]
[null,null,null,""]
[null,null,null,""]
[null,null,null,""]
[null,null,null,""]
[null,null,null,""]
[null,null,null,""]
[null,null,null,""]
[null,null,null,""]
[null,null,null,""]
[null,null,null,""]
[null,null,null,""]
[null,null,null,""]
[null,null,null,""]
[null,null,null,""]
[null,null,null,""]
[null,null,null,""]
[null,null,null,""]
[null,null,null,""]
[null,null,null,""]
[null,null,null,""]
[null,null,null,""]
[null,null,null,""]
[null,null,null,""]
[null,null,null,""]
[null,null,null,""]
[null,null,null,""]
[null,null,null,""]
[null,null,null,""]
[null,null,null,""]
[null,null,null,""]
[null,null,null,""]
[null,null,null,""]
[null,null,null,""]
[null,null,null,""]
[null,null,null,""]
[null,null,null,""]
[null,null,null,""]
[null,null,null,""]
[null,null,null,""]
[null,null,null,""]
[null,null,null,""]
[null,null,null,""]
[null,null,null,""]
[null,null,null,""]
[null,null,null,""]
[null,null,null,""]
[null,null,null,""]
[null,null,null,""]
[null,null,null,""]
[null,null,null,""]
[null,null,null,""]
[null,null,null,""]
[null,null,null,""]
[null,null,null,""]
[null,null,null,""]
[null,null,null,{"$f":"IF(C3337<>\"\",YEAR(TODAY())-YEAR(C3337),\"\")","v":""}]
[null,null,null,""]
[null,null,null,""]
[null,null,null,""]
[null,null,null,""]
[null,null,null,""]
[null,null,null,""]
[null,null,null,""]
[null,null,null,""]
[null,null,null,""]
[null,null,null,""]
[null,null,null,""]
[null,null,null,""]
[null,null,null,""]
[null,null,null,""]
[null,null,null,""]
[null,null,null,""]
[null,null,null,""]
[null,null,null,""]
[null,null,null,""]
[null,null,null,""]
[null,null,null,""]
[null,null,null,""]
[null,null,null,""]
[null,null,null,""]
[null,null,null,""]
[null,null,null,""]
[null,null,null,""]
[null,null,null,""]
[null,null,null,""]
[null,null,null,""]
[null,null,null,""]
[null,null,null,""]
[null,null,null,""]
[null,null,null,""]
[null,null,null,""]
[null,null,null,""]
[null,null,null,""]
[null,null,null,""]
[null,null,null,""]
[null,null,null,""]
[null,null,null,""]
[null,null,null,""]
[null,null,null,""]
[null,null,null,""]
[null,null,null,""]
[null,null,null,""]
[null,null,null,""]
[null,null,null,""]
[null,null,null,""]
[null,null,null,""]
[null,null,null,""]
[null,null,null,""]
[null,null,null,""]
[null,null,null,""]
[null,null,null,""]
[null,null,null,""]
[null,null,null,""]
[null,null,null,""]
[null,null,null,""]
[null,null,null,""]
[null,null,null,""]
[null,null,null,""]
[null,null,null,""]
[null,null,null,{"$f":"IF(C3401<>\"\",YEAR(TODAY())-YEAR(C3401),\"\")","v":""}]
[null,null,null,""]
[null,null,null,""]
[null,null,null,""]
[null,null,null,""]
[null,null,null,""]
[null,null,null,""]
[null,null,null,""]
[null,null,null,""]
[null,null,null,""]
[null,null,null,""]
[null,null,null,""]
[null,null,null,""]
[null,null,null,""]
[null,null,null,""]
[null,null,null,""]
[null,null,null,""]
[null,null,null,""]
[null,null,null,""]
[null,null,null,""]
[null,null,null,""]
[null,null,null,""]
[null,null,null,""]
[null,null,null,""]
[null,null,null,""]
[null,null,null,""]
[null,null,null,""]
[null,null,null,""]
[null,null,null,""]
[null,null,null,""]
[null,null,null,""]
[null,null,null,""]
[null,null,null,""]
[null,null,null,""]
[null,null,null,""]
[null,null,null,""]
[null,null,null,""]
[null,null,null,""]
[null,null,null,""]
[null,null,null,""]
[null,null,null,""]
[null,null,null,""]
[null,null,null,""]
[null,null,null,""]
[null,null,null,""]
[null,null,null,""]
[null,null,null,""]
[null,null,null,""]
[null,null,null,""]
[null,null,null,""]
[null,null,null,""]
[null,null,null,""]
[null,null,null,""]
[null,null,null,""]
[null,null,null,""]
[null,null,null,""]
[null,null,null,""]
[null,null,null,""]
[null,null,null,""]
[null,null,null,""]
[null,null,null,""]
[null,null,null,""]
[null,null,null,""]
[null,null,null,""]
[null,null,null,{"$f":"IF(C3465<>\"\",YEAR(TODAY())-YEAR(C3465),\"\")","v":""}]
[null,null,null,""]
[null,null,null,""]
[null,null,null,""]
[null,null,null,""]
[null,null,null,""]
[null,null,null,""]
[null,null,null,""]
[null,null,null,""]
[null,null,null,""]
[null,null,null,""]
[null,null,null,""]
[null,null,null,""]
[null,null,null,""]
[null,null,null,""]
[null,null,null,""]
[null,null,null,""]
[null,null,null,""]
[null,null,null,""]
[null,null,null,""]
[null,null,null,""]
[null,null,null,""]
[null,null,null,""]
[null,null,null,""]
[null,null,null,""]
[null,null,null,""]
[null,null,null,""]
[null,null,null,""]
[null,null,null,""]
[null,null,null,""]
[null,null,null,""]
[null,null,null,""]
[null,null,null,""]
[null,null,null,""]
[null,null,null,""]
[null,null,null,""]
[null,null,null,""]
[null,null,null,""]
[null,null,null,""]
[null,null,null,""]
[null,null,null,""]
[null,null,null,""]
[null,null,null,""]
[null,null,null,""]
[null,null,null,""]
[null,null,null,""]
[null,null,null,""]
[null,null,null,""]
[null,null,null,""]
[null,null,null,""]
[null,null,null,""]
[null,null,null,""]
[null,null,null,""]
[null,null,null,""]
[null,null,null,""]
[null,null,null,""]
[null,null,null,""]
[null,null,null,""]
[null,null,null,""]
[null,null,null,""]
[null,null,null,""]
[null,null,null,""]
[null,null,null,""]
[null,null,null,""]
[null,null,null,{"$f":"IF(C3529<>\"\",YEAR(TODAY())-YEAR(C3529),\"\")","v":""}]
[null,null,null,""]
[null,null,null,""]
[null,null,null,""]
[null,null,null,""]
[null,null,null,""]
[null,null,null,""]
[null,null,null,""]
[null,null,null,""]
[null,null,null,""]
[null,null,null,""]
[null,null,null,""]
[null,null,null,""]
[null,null,null,""]
[null,null,null,""]
[null,null,null,""]
[null,null,null,""]
[null,null,null,""]
[null,null,null,""]
[null,null,null,""]
[null,null,null,""]
[null,null,null,""]
[null,null,null,""]
[null,null,null,""]
[null,null,null,""]
[null,null,null,""]
[null,null,null,""]
[null,null,null,""]
[null,null,null,""]
[null,null,null,""]
[null,null,null,""]
[null,null,null,""]
[null,null,null,""]
[null,null,null,""]
[null,null,null,""]
[null,null,null,""]
[null,null,null,""]
[null,null,null,""]
[null,null,null,""]
[null,null,null,""]
[null,null,null,""]
[null,null,null,""]
[null,null,null,""]
[null,null,null,""]
[null,null,null,""]
[null,null,null,""]
[null,null,null,""]
[null,null,null,""]
[null,null,null,""]
[null,null,null,""]
[null,null,null,""]
[null,null,null,""]
[null,null,null,""]
[null,null,null,""]
[null,null,null,""]
[null,null,null,""]
[null,null,null,""]
[null,null,null,""]
[null,null,null,""]
[null,null,null,""]
[null,null,null,""]
[null,null,null,""]
[null,null,null,""]
[null,null,null,""]
[null,null,null,{"$f":"IF(C3593<>\"\",YEAR(TODAY())-YEAR(C3593),\"\")","v":""}]
[null,null,null,""]
[null,null,null,""]
[null,null,null,""]
[null,null,null,""]
[null,null,null,""]
[null,null,null,""]
[null,null,null,""]
[null,null,null,""]
[null,null,null,""]
[null,null,null,""]
[null,null,null,""]
[null,null,null,""]
[null,null,null,""]
[null,null,null,""]
[null,null,null,""]
[null,null,null,""]
[null,null,null,""]
[null,null,null,""]
[null,null,null,""]
[null,null,null,""]
[null,null,null,""]
[null,null,null,""]
[null,null,null,""]
[null,null,null,""]
[null,null,null,""]
[null,null,null,""]
[null,null,null,""]
[null,null,null,""]
[null,null,null,""]
[null,null,null,""]
[null,null,null,""]
[null,null,null,""]
[null,null,null,""]
[null,null,null,""]
[null,null,null,""]
[null,null,null,""]
[null,null,null,""]
[null,null,null,""]
[null,null,null,""]
[null,null,null,""]
[null,null,null,""]
[null,null,null,""]
[null,null,null,""]
[null,null,null,""]
[null,null,null,""]
[null,null,null,""]
[null,null,null,""]
[null,null,null,""]
[null,null,null,""]
[null,null,null,""]
[null,null,null,""]
[null,null,null,""]
[null,null,null,""]
[null,null,null,""]
[null,null,null,""]
[null,null,null,""]
[null,null,null,""]
[null,null,null,""]
[null,null,null,""]
[null,null,null,""]
[null,null,null,""]
[null,null,null,""]
[null,null,null,""]
[null,null,null,{"$f":"IF(C3657<>\"\",YEAR(TODAY())-YEAR(C3657),\"\")","v":""}]
[null,null,null,""]
[null,null,null,""]
[null,null,null,""]
[null,null,null,""]
[null,null,null,""]
[null,null,null,""]
[null,null,null,""]
[null,null,null,""]
[null,null,null,""]
[null,null,null,""]
[null,null,null,""]
[null,null,null,""]
[null,null,null,""]
[null,null,null,""]
[null,null,null,""]
[null,null,null,""]
[null,null,null,""]
[null,null,null,""]
[null,null,null,""]
[null,null,null,""]
[null,null,null,""]
[null,null,null,""]
[null,null,null,""]
[null,null,null,""]
[null,null,null,""]
[null,null,null,""]
[null,null,null,""]
[null,null,null,""]
[null,null,null,""]
[null,null,null,""]
[null,null,null,""]
[null,null,null,""]
[null,null,null,""]
[null,null,null,""]
[null,null,null,""]
[null,null,null,""]
[null,null,null,""]
[null,null,null,""]
[null,null,null,""]
[null,null,null,""]
[null,null,null,""]
[null,null,null,""]
[null,null,null,""]
[null,null,null,""]
[null,null,null,""]
[null,null,null,""]
[null,null,null,""]
[null,null,null,""]
[null,null,null,""]
[null,null,null,""]
[null,null,null,""]
[null,null,null,""]
[null,null,null,""]
[null,null,null,""]
[null,null,null,""]
[null,null,null,""]
[null,null,null,""]
[null,null,null,""]
[null,null,null,""]
[null,null,null,""]
[null,null,null,""]
[null,null,null,""]
[null,null,null,""]
[null,null,null,{"$f":"IF(C3721<>\"\",YEAR(TODAY())-YEAR(C3721),\"\")","v":""}]
[null,null,null,""]
[null,null,null,""]
[null,null,null,""]
[null,null,null,""]
[null,null,null,""]
[null,null,null,""]
[null,null,null,""]
[null,null,null,""]
[null,null,null,""]
[null,null,null,""]
[null,null,null,""]
[null,null,null,""]
[null,null,null,""]
[null,null,null,""]
[null,null,null,""]
[null,null,null,""]
[null,null,null,""]
[null,null,null,""]
[null,null,null,""]
[null,null,null,""]
[null,null,null,""]
[null,null,null,""]
[null,null,null,""]
[null,null,null,""]
[null,null,null,""]
[null,null,null,""]
[null,null,null,""]
[null,null,null,""]
[null,null,null,""]
[null,null,null,""]
[null,null,null,""]
[null,null,null,""]
[null,null,null,""]
[null,null,null,""]
[null,null,null,""]
[null,null,null,""]
[null,null,null,""]
[null,null,null,""]
[null,null,null,""]
[null,null,null,""]
[null,null,null,""]
[null,null,null,""]
[null,null,null,""]
[null,null,null,""]
[null,null,null,""]
[null,null,null,""]
[null,null,null,""]
[null,null,null,""]
[null,null,null,""]
[null,null,null,""]
[null,null,null,""]
[null,null,null,""]
[null,null,null,""]
[null,null,null,""]
[null,null,null,""]
[null,null,null,""]
[null,null,null,""]
[null,null,null,""]
[null,null,null,""]
[null,null,null,""]
[null,null,null,""]
[null,null,null,""]
[null,null,null,""]
[null,null,null,{"$f":"IF(C3785<>\"\",YEAR(TODAY())-YEAR(C3785),\"\")","v":""}]
[null,null,null,""]
[null,null,null,""]
[null,null,null,""]
[null,null,null,""]
[null,null,null,""]
[null,null,null,""]
[null,null,null,""]
[null,null,null,""]
[null,null,null,""]
[null,null,null,""]
[null,null,null,""]
[null,null,null,""]
[null,null,null,""]
[null,null,null,""]
[null,null,null,""]
[null,null,null,""]
[null,null,null,""]
[null,null,null,""]
[null,null,null,""]
[null,null,null,""]
[null,null,null,""]
[null,null,null,""]
[null,null,null,""]
[null,null,null,""]
[null,null,null,""]
[null,null,null,""]
[null,null,null,""]
[null,null,null,""]
[null,null,null,""]
[null,null,null,""]
[null,null,null,""]
[null,null,null,""]
[null,null,null,""]
[null,null,null,""]
[null,null,null,""]
[null,null,null,""]
[null,null,null,""]
[null,null,null,""]
[null,null,null,""]
[null,null,null,""]
[null,null,null,""]
[null,null,null,""]
[null,null,null,""]
[null,null,null,""]
[null,null,null,""]
[null,null,null,""]
[null,null,null,""]
[null,null,null,""]
[null,null,null,""]
[null,null,null,""]
[null,null,null,""]
[null,null,null,""]
[null,null,null,""]
[null,null,null,""]
[null,null,null,""]
[null,null,null,""]
[null,null,null,""]
[null,null,null,""]
[null,null,null,""]
[null,null,null,""]
[null,null,null,""]
[null,null,null,""]
[null,null,null,""]
[null,null,null,{"$f":"IF(C3849<>\"\",YEAR(TODAY())-YEAR(C3849),\"\")","v":""}]
[null,null,null,""]
[null,null,null,""]
[null,null,null,""]
[null,null,null,""]
[null,null,null,""]
[null,null,null,""]
[null,null,null,""]
[null,null,null,""]
[null,null,null,""]
[null,null,null,""]
[null,null,null,""]
[null,null,null,""]
[null,null,null,""]
[null,null,null,""]
[null,null,null,""]
[null,null,null,""]
[null,null,null,""]
[null,null,null,""]
[null,null,null,""]
[null,null,null,""]
[null,null,null,""]
[null,null,null,""]
[null,null,null,""]
[null,null,null,""]
[null,null,null,""]
[null,null,null,""]
[null,null,null,""]
[null,null,null,""]
[null,null,null,""]
[null,null,null,""]
[null,null,null,""]
[null,null,null,""]
[null,null,null,""]
[null,null,null,""]
[null,null,null,""]
[null,null,null,""]
[null,null,null,""]
[null,null,null,""]
[null,null,null,""]
[null,null,null,""]
[null,null,null,""]
[null,null,null,""]
[null,null,null,""]
[null,null,null,""]
[null,null,null,""]
[null,null,null,""]
[null,null,null,""]
[null,null,null,""]
[null,null,null,""]
[null,null,null,""]
[null,null,null,""]
[null,null,null,""]
[null,null,null,""]
[null,null,null,""]
[null,null,null,""]
[null,null,null,""]
[null,null,null,""]
[null,null,null,""]
[null,null,null,""]
[null,null,null,""]
[null,null,null,""]
[null,null,null,""]
[null,null,null,""]
[null,null,null,{"$f":"IF(C3913<>\"\",YEAR(TODAY())-YEAR(C3913),\"\")","v":""}]
[null,null,null,""]
[null,null,null,""]
[null,null,null,""]
[null,null,null,""]
[null,null,null,""]
[null,null,null,""]
[null,null,null,""]
[null,null,null,""]
[null,null,null,""]
[null,null,null,""]
[null,null,null,""]
[null,null,null,""]
[null,null,null,""]
[null,null,null,""]
[null,null,null,""]
[null,null,null,""]
[null,null,null,""]
[null,null,null,""]
[null,null,null,""]
[null,null,null,""]
[null,null,null,""]
[null,null,null,""]
[null,null,null,""]
[null,null,null,""]
[null,null,null,""]
[null,null,null,""]
[null,null,null,""]
[null,null,null,""]
[null,null,null,""]
[null,null,null,""]
[null,null,null,""]
[null,null,null,""]
[null,null,null,""]
[null,null,null,""]
[null,null,null,""]
[null,null,null,""]
[null,null,null,""]
[null,null,null,""]
[null,null,null,""]
[null,null,null,""]
[null,null,null,""]
[null,null,null,""]
[null,null,null,""]
[null,null,null,""]
[null,null,null,""]
[null,null,null,""]
[null,null,null,""]
[null,null,null,""]
[null,null,null,""]
[null,null,null,""]
[null,null,null,""]
[null,null,null,""]
[null,null,null,""]
[null,null,null,""]
[null,null,null,""]
[null,null,null,""]
[null,null,null,""]
[null,null,null,""]
[null,null,null,""]
[null,null,null,""]
[null,null,null,""]
[null,null,null,""]
[null,null,null,""]
[null,null,null,{"$f":"IF(C3977<>\"\",YEAR(TODAY())-YEAR(C3977),\"\")","v":""}]
[null,null,null,""]
[null,null,null,""]
[null,null,null,""]
[null,null,null,""]
[null,null,null,""]
[null,null,null,""]
[null,null,null,""]
[null,null,null,""]
[null,null,null,""]
[null,null,null,""]
[null,null,null,""]
[null,null,null,""]
[null,null,null,""]
[null,null,null,""]
[null,null,null,""]
[null,null,null,""]
[null,null,null,""]
[null,null,null,""]
[null,null,null,""]
[null,null,null,""]
[null,null,null,""]
[null,null,null,""]
[null,null,null,""]
["-","-","-","-","-","-","-","-","-","-","-","-","-","-","-","-"]